Cogmind - Beta 13 @@@ ROGUE MODE // 2024.05.18 @ 00:44:25 Player: puppuppit Result: Destroyed by G-67 Veteran with Field Laser Performance ------------- Evolutions (7) 3500 Regions Visited (33) 6600 Robots Destroyed (868) 4340 Value Destroyed (34041) 34041 Prototype IDs (126) 2520 Alien Tech Used (1) 200 Bonus (28596) 28596 TOTAL SCORE: 79797 Bonus ------- Triggered High Security 3500 Triggered Max Security 1000 High Alert Combat Kills 16519 Follower Combat Kills 4057 Awakened Behemoth Slayer 1000 Entered Garrisons 600 Network Hubs Disabled 200 Aligned with FarCom 300 Met Imprinter 300 Acquired ECA 300 Met Warlord at Base 500 MAIN.C Attacked Warlord 500 Warlord Defense Kills 1010 Built Enhanced Grunts 300 Scanned by Researcher 500 Friendly Fire -1990 Cogmind --------- Core Integrity 0/1300 Matter 282/300 Energy 90/100 System Corruption 6% Temperature Cool (12) Movement Flying (35) Location -3/Quarantine Parts ------- > --- POWER (1) -------- (None) > --- PROPULSION (6) --- Cesium-ion Thruster > --- UTILITY (12) ----- (None) > --- WEAPON (2) ------- (None) > --- INVENTORY (5) ---- Matter Drive Peak State ------------ > --- POWER ------------ Light Quantum Reactor > --- PROPULSION ------- Antigrav Array Antigrav Array Impulse Thruster Array > --- UTILITY ---------- Experimental Optical Array Improved Target Analyzer Experimental Weapon Shielding Layered Medium Armor Plating Improved Shock Absorption System Advanced EM Disruption Field Hacking Suite Improved Hacking Suite Improved Hacking Suite Advanced Hacking Suite Makeshift System Shield Improved System Shield > --- WEAPON ----------- Helical Railgun CR-A16's Behemoth Slayer > --- INVENTORY -------- Encrypted Comm Array Stasis Canceller Experimental Field Recycling Unit Fusion Bomb Launcher [Rating: 143] Favorites ----------- Power Light Antimatter Reactor Engine Cooled Ion Engine Power Core Micro Nuclear Core Reactor Light Antimatter Reactor Propulsion Improved Hover Unit Treads Medium Treads Leg Carbon-fiber Leg Wheel Wheel Hover Unit Improved Hover Unit Flight Unit Impulse Thruster Utility Improved Hacking Suite Device Advanced Heat Sink Storage Medium Storage Unit Processor Experimental Optical Array Hackware Improved Hacking Suite Protection Layered Light Armor Plating Weapon KE Penetrator Energy Gun AWS/Thermal Energy Cannon Advanced Plasma Cannon Ballistic Gun KE Penetrator Ballistic Cannon Magnetic Acceleration Cannon Launcher Tiamat Missile Launcher Special Weapon Mining Laser Impact Weapon Powered Hammer Piercing Weapon CR-A16's Behemoth Slayer Build | -11 -10 -10 -9 -9 -9 -8 -8 -8 -8 -7 -7 -7 -7 -7 -7 -6 -6 -6 -6 -6 -6 -6 -5 -5 -5 -5 -4 -4 -4 -4 -4 -3 -3 ------- Run | Yrd Mat Min Mat Min Exi Min Mat Gar Mat Fac Gar Fac Low Low Zio Pro Fac Ext Cet Arc Hub Gar Fac Upp Upp War Pro Fac Was Fac Arm Res Qua Slots Evolved 14 | . . . 2 . . . 2 . . 2 . . . . . . 2 . . . . . 2 . . . . 2 . . . 2 . Power . | . . . . . . . . . . . . . . . . . . . . . . . . . . . . . . . . . . Propulsion 4 | . . . 2 . . . . . . 1 . . . . . . . . . . . . . . . . . 1 . . . . . Utility 10 | . . . . . . . 2 . . 1 . . . . . . 2 . . . . . 2 . . . . 1 . . . 2 . Weapon . | . . . . . . . . . . . . . . . . . . . . . . . . . . . . . . . . . . Parts Attached 863 | 9 7 5 85 3 1 8 30 28 21 49 25 52 5 5 5 1 95 19 5 15 8 36 60 11 29 49 5 51 2 75 23 35 6 Power 70 | 1 . . 10 . . . 1 8 . 4 1 1 . . 1 . 6 3 1 2 . 2 1 . 1 8 1 5 . 6 5 2 . Engine 23 | 1 . . 10 . . . 1 2 . 1 . . . . . . 3 3 1 1 . . . . . . . . . . . . . Core 21 | . . . . . . . . 6 . 3 1 1 . . 1 . 3 . . 1 . . . . 1 3 . . . . 1 . . Reactor 26 | . . . . . . . . . . . . . . . . . . . . . . 2 1 . . 5 1 5 . 6 4 2 . Propulsion 260 | 3 3 1 40 . . 6 10 4 10 21 3 21 1 1 . 1 18 4 1 4 2 8 11 1 4 22 1 23 2 13 2 15 4 Treads 1 | . . . . . . . . . . . . . . . . . . . . . . . . . 1 . . . . . . . . Leg 6 | . . . . . . . . . . . . . . . . 1 . . . . . . . . 2 3 . . . . . . . Wheel 39 | 3 . . 26 . . 6 2 . . . . . . . . . . . . . . . . . . . . 2 . . . . . Hover 139 | . . . 1 . . . 8 4 10 21 2 18 . . . . 18 4 1 4 2 8 11 1 . 10 . 2 . . . 14 . Flight 75 | . 3 1 13 . . . . . . . 1 3 1 1 . . . . . . . . . . 1 9 1 19 2 13 2 1 4 Utility 235 | 3 . . 6 1 . . 7 4 6 18 4 16 1 . . . 39 7 2 6 2 9 26 4 8 8 . 10 . 31 5 11 1 Device 98 | 1 . . . . . . 2 2 2 3 1 7 1 . . . 20 1 . . . 4 11 2 4 3 . 4 . 21 1 7 1 Storage 14 | 2 . . 3 . . . 1 . 1 . . . . . . . . . . . . 1 3 1 . . . 1 . 1 . . . Processor 24 | . . . 3 . . . 1 . 1 1 . 1 . . . . 2 1 . . . 1 3 1 2 3 . 2 . 2 . . . Hackware 24 | . . . . . . . 1 . 1 1 . 2 . . . . 4 . . 6 . . 1 . 2 1 . 1 . 2 1 1 . Protection 75 | . . . . 1 . . 2 2 1 13 3 6 . . . . 13 5 2 . 2 3 8 . . 1 . 2 . 5 3 3 . Artifact . | . . . . . . . . . . . . . . . . . . . . . . . . . . . . . . . . . . Weapon 298 | 2 4 4 29 2 1 2 12 12 5 6 17 14 3 4 4 . 32 5 1 3 4 17 22 6 16 11 3 13 . 25 11 7 1 Energy Gun 26 | 2 3 1 1 . 1 . 3 3 . . 1 . . 3 . . 8 . . . . . . . . . . . . . . . . Energy Cannon 12 | . . . . . . . . . . . . . . . . . . . . . . . . 1 1 . . 4 . 5 1 . . Ballistic Gun 123 | . 1 1 18 2 . 2 4 3 5 6 12 7 2 . . . 1 . . 3 2 10 14 2 4 6 . 2 . 12 2 2 . Ballistic Cannon 15 | . . . . . . . 2 1 . . . . . . . . 7 . . . . . . . 3 1 . . . 1 . . . Launcher 70 | . . . 10 . . . 3 . . . 4 7 1 1 1 . 7 3 . . 2 6 6 3 5 1 . . . 1 7 2 . Special Weapon 11 | . . 2 . . . . . . . . . . . . . . . . . . . . . . . 2 3 4 . . . . . Impact Weapon 5 | . . . . . . . . 5 . . . . . . . . . . . . . . . . . . . . . . . . . Slashing Weapon . | . . . . . . . . . . . . . . . . . . . . . . . . . . . . . . . . . . Piercing Weapon 36 | . . . . . . . . . . . . . . . 3 . 9 2 1 . . 1 2 . 3 1 . 3 . 6 1 3 1 Special Melee Weapon . | . . . . . . . . . . . . . . . . . . . . . . . . . . . . . . . . . . Unidentified Prototypes 30 | . . . 1 . . . 2 . 1 1 . 2 . . 1 . 8 . . . . 1 2 . . 2 . 1 . 3 2 3 . Parts Lost 129 | . 2 3 11 . . 1 4 4 3 6 3 7 4 . . 2 2 7 6 2 1 7 11 2 11 1 1 1 . 6 10 5 6 Power 10 | . . . 2 . . . . . . 1 1 . . . . . . 1 1 . . . 1 . . . . . . 1 1 . 1 Propulsion 73 | . 2 1 7 . . 1 . 3 3 4 2 7 2 . . 2 2 . 3 1 . 3 5 1 6 1 1 1 . 4 6 2 3 Utility 28 | . . . . . . . 1 . . 1 . . . . . . . 5 1 1 1 3 4 1 3 . . . . 1 2 3 1 Weapon 18 | . . 2 2 . . . 3 1 . . . . 2 . . . . 1 1 . . 1 1 . 2 . . . . . 1 . 1 Highest Loss Streak 7 | . 2 2 3 . . 1 2 2 2 3 1 4 4 . . 1 1 4 2 3 1 3 4 2 3 1 1 1 . 2 7 2 6 To Critical Strikes 2 | . . . 1 . . . . . . . . . . . . . . . 1 . . . . . . . . . . . . . . Average Slot Usage (%) 87 | . 81 70 94 100 88 98 97 95 99 98 96 98 74 67 70 73 83 93 87 84 99 95 90 88 62 83 61 77 100 95 81 76 48 Engine 2 | . 5 . 9 11 11 11 9 2 . . . . . . . . 1 5 5 3 . . . . . 2 . . . . . . . Core 2 | . . . . . . . . 6 9 6 6 7 7 7 7 7 4 . . 2 6 2 . . . . . . . . . . . Reactor 1 | . . . . . . . . . . . . . . . . . . . . . . 3 4 5 . 1 2 4 5 4 4 3 1 Wheel 4 | . 9 . 21 44 44 43 16 . . . . . . . . . . . . . . . . . . . . 2 . . . . . Hover 17 | . . . . . . . 19 36 36 37 35 36 29 23 23 18 21 27 27 22 33 28 22 21 3 8 11 7 . . . 12 12 Flight 6 | . 17 28 19 . . . . . . . 1 . 2 11 15 12 . . . . . . . . 1 2 2 11 31 30 20 1 . Device 6 | . 5 . . . . . . 8 3 8 7 9 15 15 15 15 5 1 . . . 6 11 11 11 8 . 5 5 6 5 9 10 Storage 6 | . 14 14 11 11 11 11 9 9 9 7 7 7 7 7 7 7 6 6 6 6 6 5 5 5 5 5 5 5 5 5 4 . . Processor 7 | . . . 10 8 . . 9 1 5 3 7 5 . . . . . 1 6 3 . 4 10 10 15 15 17 19 26 19 14 9 4 Hackware 11 | . . . . . . . 8 9 9 4 . 1 . . . . 22 24 20 29 33 22 17 17 11 20 17 13 15 17 22 25 10 Protection 4 | . . . . 2 11 11 7 7 9 12 13 12 . . . . 7 10 7 4 5 5 2 1 . . . . . 2 3 4 2 Ballistic Gun 8 | . 8 14 20 22 5 21 14 5 17 15 12 12 8 . . . . . . 8 12 12 10 9 2 4 . . 5 3 . 2 2 Piercing Weapon 1 | . . . . . . . . . . . . . . . 1 7 3 4 4 . . . . . 1 . . 3 5 3 3 1 . Naked Turns 40 | . . . . . . . . . . . . . . . . . . . . . . . . . . . . . . . . . 40 Heaviest Build 79 | 11 11 8 20 23 25 25 32 35 31 34 38 40 36 31 24 24 49 51 41 34 45 79 72 56 51 52 42 48 41 48 40 60 60 Greatest Support 78 | 26 20 8 40 40 40 40 40 33 32 37 38 47 42 25 25 25 49 49 49 48 48 63 72 73 61 63 28 50 46 46 42 78 72 Greatest Overweight (x) 8 | . . . 1 . . . 3 1 . 1 1 1 1 1 . 1 1 1 1 1 . 1 1 1 3 7 6 8 . 1 1 . 1 Average Overweight (x) . | . . . . . . . . . . . . . . . . . . . . . . . . . . . . . . . . . . Largest Inventory Capacity 20 | 8 8 8 8 8 8 8 10 10 10 10 10 10 10 10 10 10 10 10 10 10 10 20 20 15 15 15 15 15 15 15 15 5 5 Average Capacity 11 | 7 8 8 8 8 8 8 8 10 10 10 10 10 10 10 10 10 10 10 10 10 10 13 16 15 15 15 15 15 15 15 13 5 5 Most Carried 20 | 3 8 8 8 8 8 8 10 10 10 10 10 10 10 10 10 10 10 10 9 10 10 20 20 15 15 15 15 15 15 15 15 5 5 Average Carried 10 | . 5 7 7 8 8 7 8 9 9 9 9 9 7 9 9 9 9 9 8 9 9 12 15 14 14 14 13 14 14 14 12 4 2 Final Capacity 20 | 8 8 8 8 8 8 8 10 10 10 10 10 10 10 10 10 10 10 10 10 10 10 20 15 15 15 15 15 15 15 15 5 5 5 Final Carried 20 | 3 6 8 8 8 8 8 10 10 10 10 10 8 7 10 10 10 10 9 8 10 10 20 14 15 15 15 12 15 15 14 5 5 2 Class Distribution -------------------- 30% | Scavenger-Mutant 28% | Hacker-Mutant 14% | Mutant 7% | Hacker-Sprinter 4% | Scout 3% | Wizard-Mutant 3% | Commander-Mutant Dominant Class ---------------- Mutant | -10/Materials Mutant | -10/Mines Scavenger-Mutant | -9/Materials Scavenger-Mutant | -9/Mines Scavenger-Mutant | -9/Exiles Scavenger-Mutant | -8/Mines Mutant | -8/Materials Commander-Mutant | -8/Garrison Scavenger-Mutant | -8/Materials Scavenger-Mutant | -7/Factory Mutant | -7/Garrison Mutant | -7/Factory Mutant | -7/Lower Caves Scout | -7/Lower Caves Scout | -7/Zion Scavenger-Assassin | -6/Proximity Caves Hacker-Mutant | -6/Factory Hacker-Mutant | -6/Extension Scavenger-Mutant | -6/Cetus Wizard-Mutant | -6/Archives Scavenger-Mutant | -6/Hub_04(d) Scavenger-Mutant | -6/Garrison Hacker-Mutant | -5/Factory Hacker-Mutant | -5/Upper Caves Hacker-Mutant | -5/Upper Caves Hacker-Mutant | -5/Warlord Hacker-Mutant | -4/Proximity Caves Hacker-Mutant | -4/Factory Hacker-Sprinter | -4/Waste Hacker-Sprinter | -4/Factory Hacker-Sprinter | -4/Armory Wizard-Mutant | -3/Research Hacker-Mutant | -3/Quarantine Resources | -11 -10 -10 -9 -9 -9 -8 -8 -8 -8 -7 -7 -7 -7 -7 -7 -6 -6 -6 -6 -6 -6 -6 -5 -5 -5 -5 -4 -4 -4 -4 -4 -3 -3 ----------- Run | Yrd Mat Min Mat Min Exi Min Mat Gar Mat Fac Gar Fac Low Low Zio Pro Fac Ext Cet Arc Hub Gar Fac Upp Upp War Pro Fac Was Fac Arm Res Qua Matter Collected 27155 | 249 289 306 3833 145 . 536 773 483 630 1829 726 1498 702 110 34 21 3110 1133 587 500 312 2266 2047 377 718 976 45 475 . 1149 184 1098 14 Remotely 752 | . . . . . . . . . . . . . . . . . . . . . . . . . . . . . . . . 752 . Salvage Created 31824 | 207 411 182 4087 225 . 1266 1015 1019 836 1905 935 2427 175 186 . . 2999 2370 838 360 401 2964 2288 202 492 533 146 791 . 1124 280 1160 . Parts 1742 | 12 33 11 311 14 . 93 50 57 57 103 58 116 10 13 . . 165 111 43 22 19 118 98 5 27 17 10 40 . 53 12 64 . Haulers Intercepted 24 | . . . 6 . . . 2 . 1 . . 3 . . . . 7 1 . . . . 1 . . . . 1 . 2 . . . Recyclers Shooed 21 | . . . 5 . . 4 1 . 3 3 . 1 . . . . 1 1 . . . . . . . . . . . . . 2 . Parts Field Recycled . | . . . . . . . . . . . . . . . . . . . . . . . . . . . . . . . . . . Retrieved Matter . | . . . . . . . . . . . . . . . . . . . . . . . . . . . . . . . . . . Parts Self-Destructed 56 | . . . . . . . . . . . . . 11 10 . 13 . . . . . . . . 15 . 7 . . . . . . Prevented 3 | . . . . . . . . . . . . . 1 2 . . . . . . . . . . . . . . . . . . . Kills | -11 -10 -10 -9 -9 -9 -8 -8 -8 -8 -7 -7 -7 -7 -7 -7 -6 -6 -6 -6 -6 -6 -6 -5 -5 -5 -5 -4 -4 -4 -4 -4 -3 -3 ------- Run | Yrd Mat Min Mat Min Exi Min Mat Gar Mat Fac Gar Fac Low Low Zio Pro Fac Ext Cet Arc Hub Gar Fac Upp Upp War Pro Fac Was Fac Arm Res Qua Combat Hostiles Destroyed 571 | . 9 6 49 . . 4 16 24 9 17 32 46 6 6 . . 65 52 26 2 9 42 55 5 26 9 8 12 . 7 7 22 . Melee 12 | . . . . . . . . 2 . . . . . . . . 1 1 . 1 . . 1 . 1 1 . 4 . . . . . Guns 223 | . 9 6 32 . . 4 9 16 9 17 22 23 2 3 . . 6 . . 1 3 23 18 1 4 6 . . . 5 . 4 . Cannons 14 | . . . . . . . . 6 . . . . . . . . 3 . . . . . . 1 1 . 2 1 . . . . . AOE 310 | . . . 17 . . . 7 . . . 10 23 4 3 . . 54 49 26 . 6 18 35 3 20 1 6 5 . . 6 17 . Classes Destroyed 24 | 2 3 1 9 . . 1 . 2 1 . . . 1 . . . 3 1 . . . . . . . . . . . . . . . Worker 115 | . 1 2 49 2 . 10 4 . 4 12 . 2 . . . . 15 3 . . 4 . . . . . . 1 . 2 . 4 . Builder 52 | . . . 24 1 . 6 1 . 2 . . 4 . . . . 8 3 . . 1 . . . . . . . . 1 . 1 . Tunneler 22 | 4 . . 4 1 . 8 . . . 1 . 1 . . . . 1 1 . . . . 1 . . . . . . . . . . Hauler 24 | . . . 6 . . . 2 . 1 . . 3 . . . . 7 1 . . . . 1 . . . . 1 . 2 . . . Recycler 52 | 1 1 . 11 2 . 9 2 . 1 7 . 4 . . . . 2 5 . . . . 1 . . . . 2 . 1 . 3 . Minesweeper 3 | . . . . . . . . . . . . . 1 . . . . . . . . . . . 2 . . . . . . . . Mechanic 13 | . . . 3 . . . . . . 2 . . . . . . 2 2 2 . . . 2 . . . . . . . . . . Operator 15 | . . . 2 . . . 2 . . 1 . 1 . . . . . 1 . 6 . . . . . . . . . 1 . 1 . Watcher 32 | . . . 5 . . . 2 . 1 5 . 4 . . . . 4 1 1 . 1 1 2 . . . . 1 . 3 . 1 . Swarmer 131 | . 3 . 10 . . 3 2 4 . 4 20 3 . 3 . . 14 . 4 . 4 16 2 . 16 . 5 7 . . 1 10 . Cutter 4 | . . . . . . . . . . . . . . . . . 4 . . . . . . . . . . . . . . . . Saboteur 8 | . . . . . . . . . . . . . . . . . . 3 . . . . 4 . . 1 . . . . . . . Grunt 207 | . 6 2 23 . . . 10 6 5 7 10 22 3 . . . 20 21 9 . 3 11 27 . 8 3 3 2 . . 2 4 . Brawler 37 | . . . 2 . . . . 6 . . 1 6 . . . . 1 4 3 . . 4 9 . . 1 . . . . . . . Duelist 27 | . . . 3 . . . 1 3 1 . 1 2 1 . . . 2 4 1 . . 1 7 . . . . . . . . . . Protector 15 | . . . 2 . . . . . . . . 4 . . . . 3 3 1 . . . 1 . . 1 . . . . . . . Sentry 48 | . . . 9 . . . 3 1 3 4 . 1 . . . . 1 7 2 2 2 6 1 . 2 . . . . 3 1 . . Specialist 8 | . . . . . . . . 2 . . . . . . . . 4 . 2 . . . . . . . . . . . . . . Hunter 36 | . . . . . . 1 . 1 . 1 . 5 1 . . . 11 5 . . . 2 1 1 . . . 1 . . 2 4 . Programmer 24 | . . . . . . . . 1 . 1 . 3 1 3 . . 2 3 2 . . . 2 . . 1 . . . 2 . 3 . Heavy 3 | . . . . . . . . . 1 . . . . . . . 2 . . . . . . . . . . . . . . . . Behemoth 13 | . . . . . . . . . . . . . . . . . 1 2 . . . 2 1 . . 1 . 2 . 2 1 1 . Cetus Guard 2 | . . . . . . . . . . . . . . . . . . . 2 . . . . . . . . . . . . . . Assembled 4 | . . 4 . . . . . . . . . . . . . . . . . . . . . . . . . . . . . . . Wasp 2 | . . . . . . . . . . . . . . . . . 2 . . . . . . . . . . . . . . . . Thug 5 | . . . . . . . . . . . . . . . . . . . . . . . . 4 . 1 . . . . . . . Butcher 1 | . . . . . . . . . . . . . . . . . . . . . . . 1 . . . . . . . . . . Fireman 2 | . . . . . . . . . . . . . . . . . 2 . . . . . . . . . . . . . . . . Best Kill Streak 25 | 5 3 4 9 3 . 9 8 6 9 5 9 7 4 3 . . 18 25 14 2 7 8 22 3 14 2 5 6 . 2 2 8 . Combat Bots Only 23 | . 3 2 5 . . 3 6 6 5 4 9 7 4 3 . . 15 23 12 1 4 8 22 3 14 2 5 5 . 1 2 5 . Max Kills in Single Turn 10 | 1 2 1 3 2 . 1 3 1 2 2 3 4 1 3 . . 7 10 5 1 4 4 4 2 6 2 3 3 . 2 2 4 . Gunslinging 1 | . 1 . . . . . . . . . . . . . . . . . . . . 1 1 . . 1 . . . . . . . Exploded 9 | . . . 2 . . . 1 . . . 3 3 1 3 . . 5 9 5 . 2 4 4 2 6 1 2 3 . . 2 3 . Melee 1 | . . . . . . . . 1 . . . . . . . . 1 1 . 1 . . 1 . 1 1 . 1 . . . . . Uniques/NPCs Destroyed . | . . . . . . . . . . . . . . . . . . . . . . . . . . . . . . . . . . Combat | -11 -10 -10 -9 -9 -9 -8 -8 -8 -8 -7 -7 -7 -7 -7 -7 -6 -6 -6 -6 -6 -6 -6 -5 -5 -5 -5 -4 -4 -4 -4 -4 -3 -3 -------- Run | Yrd Mat Min Mat Min Exi Min Mat Gar Mat Fac Gar Fac Low Low Zio Pro Fac Ext Cet Arc Hub Gar Fac Upp Upp War Pro Fac Was Fac Arm Res Qua Hostile Shots Fired 2522 | . 51 17 137 1 . 23 100 69 36 243 56 119 37 14 . 6 143 296 55 17 33 206 141 37 84 45 23 57 1 89 119 131 136 Missed 1041 | . 19 5 43 1 . 6 29 29 11 103 28 48 12 4 . 2 51 136 23 1 22 85 59 17 34 21 9 29 1 47 51 60 55 Damage Taken 23645 | . 397 185 1290 . . 179 1088 665 437 1454 461 1218 335 148 . 68 1564 1344 488 356 188 1094 1523 432 1104 711 254 589 . 993 1798 1653 1629 Core 5230 | . 76 54 271 . . 49 202 62 49 242 74 109 17 58 . 23 283 190 82 68 11 85 210 41 353 213 98 202 . 191 608 140 1169 Absorbed by Shields 1108 | . . . . . . . . 126 36 52 . . . . . . . 221 164 . . 207 302 . . . . . . . . . . Redirected to Shielding 367 | . . . . . . . . . . 90 . . . . . . . 6 6 16 . . . . . . . . . . 117 132 . Ignored by Resistances 187 | . . . . . . . . . . . . . . . . . 33 26 . . . 25 . . . . . . . . . 103 . Regen/Repaired (Parts) 1067 | . 4 . 148 . . . . . . 128 . . . . . . 444 . . . . . 81 . . 138 . 36 . 30 . 58 . Core Remaining (%) 33 | 100 . 48 . . . 20 . . 43 . . . . . . 25 . . . . . 15 . . . . 8 . . . 12 . . Volleys Fired 1690 | 11 52 19 339 14 . 72 83 32 55 144 53 115 20 1 . . 83 27 21 53 16 187 88 11 45 35 5 7 . 52 9 41 . Largest 2 | 2 2 2 2 2 . 2 2 2 2 2 2 2 2 1 . . 2 2 2 2 2 2 2 2 2 2 1 1 . 2 1 2 . Hottest 147 | 80 80 64 63 46 . 46 73 67 56 53 74 74 74 39 . . 99 92 92 66 66 79 82 147 131 70 . 100 . 100 52 90 . Shots Fired 3115 | 22 99 29 640 29 . 152 161 102 110 287 129 222 33 16 . . 138 34 24 70 22 344 158 22 54 52 5 7 . 91 9 54 . Gun 2698 | 22 99 29 605 29 . 152 148 83 110 287 121 190 26 15 . . 39 . . 70 16 335 118 9 35 45 . . . 83 . 32 . Cannon 77 | . . . . . . . 2 19 . . . . . . . . 28 . . . . . . 6 7 4 . 3 . 8 . . . Launcher 328 | . . . 35 . . . 11 . . . 8 32 7 1 . . 71 34 24 . 6 9 40 7 12 . . . . . 9 22 . Special 12 | . . . . . . . . . . . . . . . . . . . . . . . . . . 3 5 4 . . . . . Kinetic 2487 | . 37 19 602 29 . 144 131 42 110 287 89 190 26 . . . 28 . . 70 16 335 118 9 41 49 . . . 83 . 32 . Thermal 258 | 22 62 10 3 . . 8 . 60 . . 32 . . 15 . . 39 . . . . . . 6 1 . . . . . . . . Explosive 340 | . . . 35 . . . 11 . . . 8 32 7 1 . . 71 34 24 . 6 9 40 7 12 3 5 4 . . 9 22 . Electromagnetic 19 | . . . . . . . 19 . . . . . . . . . . . . . . . . . . . . . . . . . . Entropic 11 | . . . . . . . . . . . . . . . . . . . . . . . . . . . . 3 . 8 . . . Robot Hit Streak 46 | 4 10 5 46 7 . 9 12 24 11 15 15 12 7 9 . . 18 18 25 13 9 18 17 4 7 10 3 6 . 15 3 8 . Robot Miss Streak 12 | 2 5 4 6 2 . 4 5 12 4 6 6 6 4 1 . . 3 2 1 4 2 8 4 3 4 3 1 1 . 2 1 6 . Penetration Max 2 | . . . . . . . . . 1 1 1 1 1 . . . . . . 1 1 2 1 . . 1 . . . 1 . 1 . Secondary Targets 12 | . 1 . . . . . 1 . 2 1 2 1 . . . . . . . . . 1 2 . . 1 . . . . . . . Max Gunslinging Chain 1 | . 1 . . . . . 1 . 1 1 1 1 . . . . . . . . . 1 1 . . 1 . . . . . . . Autonomous 155 | . . . . . . 8 . 60 . . 32 . . 15 . . 40 . . . . . . . . . . . . . . . . Shots Hit Robots 2055 | 13 62 18 433 20 . 92 100 78 65 173 60 144 17 13 . . 126 37 19 44 14 216 99 12 39 24 4 17 . 80 5 31 . Core Hits 1713 | 6 21 17 203 6 . 44 59 43 32 77 44 118 18 6 . . 253 167 102 22 24 120 130 12 42 15 11 13 . 27 22 59 . Critical Kills 41 | . . . 2 . . 1 1 2 . 2 1 2 . . . . . . . . . 14 9 . 1 . . . . 2 . 4 . Critical Parts Destroyed 45 | . . . 2 . . . . . . 1 . 3 . . . . . . . 3 1 20 9 . 3 . . . . 3 . . . Critical Strikes 121 | . . . 4 . . 1 3 2 . 4 1 5 . . . . 11 2 . 5 1 35 19 . 5 2 1 4 . 12 . 4 . Destroy 89 | . . . 4 . . 1 1 . . 4 1 5 . . . . . . . 3 1 35 19 . 4 . . . . 7 . 4 . Blast 2 | . . . . . . . . . . . . . . . . . 2 . . . . . . . . . . . . . . . . Corrupt 2 | . . . . . . . 2 . . . . . . . . . . . . . . . . . . . . . . . . . . Smash 2 | . . . . . . . . 2 . . . . . . . . . . . . . . . . . . . . . . . . . Sever 3 | . . . . . . . . . . . . . . . . . . . . . . . . . . 2 1 . . . . . . Impale 23 | . . . . . . . . . . . . . . . . . 9 2 . 2 . . . . 1 . . 4 . 5 . . . Melee Attacks 253 | . . . . . . . . 32 . . . . . . 1 4 61 17 3 3 . 1 2 . 10 1 . 36 . 52 13 14 3 Impact 32 | . . . . . . . . 32 . . . . . . . . . . . . . . . . . . . . . . . . . Slashing . | . . . . . . . . . . . . . . . . . . . . . . . . . . . . . . . . . . Piercing 221 | . . . . . . . . . . . . . . . 1 4 61 17 3 3 . 1 2 . 10 1 . 36 . 52 13 14 3 Sneak Attacks 36 | . . . . . . . . 1 . . . . . . . . 12 3 . 1 . 1 1 . 2 . . 5 . 7 . 3 . Combat Hostiles 5 | . . . . . . . . 1 . . . . . . . . . . . . . 1 1 . . . . 1 . 1 . . . Follow-up Attacks 1 | . . . . . . . . 1 . . . . . . . . . . . . . . . . . . . . . . . . . Damage Inflicted 101750 | 161 734 289 8480 297 . 1453 2522 2024 1252 3329 2424 7962 897 536 . . 15741 11055 5778 1264 1565 5758 9687 1092 3818 1446 1208 1784 . 2791 1898 4487 18 Guns 34384 | 161 734 289 6421 297 . 1453 1367 1586 1194 3194 1427 3543 347 381 . . 864 . . 1137 398 4046 1754 94 558 716 . . . 1830 . 593 . Cannons 1396 | . . . . . . . 30 251 . . . . . . . . 639 . . . . . . 166 218 . . 92 . . . . . Explosions 60600 | . . . 2059 . . . 1125 . . 118 997 4419 550 155 . . 12429 10472 5778 . 1167 1712 7933 832 2760 572 990 1017 . . 1876 3639 . Melee 4711 | . . . . . . . . 187 . . . . . . . . 1809 583 . 127 . . . . 282 . . 519 . 961 . 243 . Ramming 127 | . . . . . . . . . 58 17 . . . . . . . . . . . . . . . . . . . . 22 12 18 Kinetic 30909 | . 248 209 6398 297 . 1276 1193 344 1194 3194 683 3543 347 . . . 639 . . 1137 398 4046 1754 94 776 716 . . . 1830 . 593 . Thermal 5807 | 161 486 80 23 . . 177 . 1493 . 118 744 . . 381 . . 1558 225 . . . . . 166 . . . . . . 195 . . Explosive 58835 | . . . 2059 . . . 1125 . . . 997 4419 550 155 . . 11278 10247 5778 . 1091 1712 7933 832 2760 572 990 1017 . . 1681 3639 . Electromagnetic 737 | . . . . . . . 204 . . . . . . . . . 457 . . . 76 . . . . . . . . . . . . Impact 187 | . . . . . . . . 187 . . . . . . . . . . . . . . . . . . . . . . . . . Slashing 532 | . . . . . . . . . . . . . . . . . . . . . . . . . . 158 218 156 . . . . . Piercing 4524 | . . . . . . . . . . . . . . . . . 1809 583 . 127 . . . . 282 . . 519 . 961 . 243 . Entropic 92 | . . . . . . . . . . . . . . . . . . . . . . . . . . . . 92 . . . . . Highest Corruption 6 | . 1 4 2 2 2 2 . . . 1 1 1 . . . . . . . . 2 5 4 5 6 6 . . . 1 6 5 6 Average Corruption 2 | . 1 2 2 2 2 2 . . . 1 1 1 . . . . . . . . 2 3 3 5 5 6 . . . 1 1 4 5 Corruption Purged 2 | . . . . . . . . . . . . 2 . . . . . . . . . . . . . . . . . . . . . Corruption Blocked 16 | . . . . . . . . . . . . . . . . . 5 . . . . . . . . 11 . . . . . . . Effects 206 | . 4 4 28 6 2 9 . . . 8 3 2 . . . . . . . . 3 41 11 15 56 . . . . 8 1 1 4 Message Errors 44 | . 1 1 6 . . 3 . . . . . 2 . . . . . . . . 1 10 2 5 9 . . . . 2 1 1 . Matter Fused 51 | . 2 1 5 1 1 2 . . . 1 1 . . . . . . . . . 1 12 3 4 16 . . . . . . . 1 Heat Flow Errors 26 | . . . 3 . 1 1 . . . 2 . . . . . . . . . . . 4 1 2 8 . . . . 3 . . 1 Energy Discharges 26 | . . . 2 2 . 2 . . . . 1 . . . . . . . . . . 4 1 3 9 . . . . 1 . . 1 Parts Rejected 3 | . . . 1 . . . . . . . . . . . . . . . . . . 2 . . . . . . . . . . . Parts Fused 2 | . . . . 1 . . . . . . . . . . . . . . . . . . 1 . . . . . . . . . . Data Loss (minor) 23 | . . . 5 1 . 1 . . . 3 . . . . . . . . . . 1 1 1 . 8 . . . . 1 . . 1 Data Loss (major) 11 | . . 1 1 . . . . . . . . . . . . . . . . . . 4 1 1 3 . . . . . . . . Misfires 5 | . . . 1 1 . . . . . 1 1 . . . . . . . . . . . . . 1 . . . . . . . . Alerts 9 | . . 1 2 . . . . . . . . . . . . . . . . . . 3 . . 2 . . . . 1 . . . Weapon Failures 6 | . 1 . 2 . . . . . . 1 . . . . . . . . . . . 1 1 . . . . . . . . . . Overload Shots . | . . . . . . . . . . . . . . . . . . . . . . . . . . . . . . . . . . Overflow Damage 2936 | . . . 51 . . . . . . . 28 191 19 . . . 715 268 29 15 80 7 314 19 358 30 12 229 . 256 52 263 . Projectiles 13 | . . . . . . . . . . . . . . . . . . . . . . . . . . . 10 3 . . . . . Explosions 1839 | . . . 51 . . . . . . . 28 191 19 . . . 335 221 29 . 80 7 314 19 231 30 2 18 . . 52 212 . Melee 1084 | . . . . . . . . . . . . . . . . . 380 47 . 15 . . . . 127 . . 208 . 256 . 51 . Knockbacks 13 | . . . . . . . 3 9 . . . . . . . . 1 . . . . . . . . . . . . . . . . Impact . | . . . . . . . . . . . . . . . . . . . . . . . . . . . . . . . . . . Kinetic 13 | . . . . . . . 3 9 . . . . . . . . 1 . . . . . . . . . . . . . . . . Secondary . | . . . . . . . . . . . . . . . . . . . . . . . . . . . . . . . . . . Self-Inflicted Damage 961 | . . . 58 . . . 5 . 29 8 46 . . . . . 56 63 15 . 102 . 255 15 81 . . . . . 43 177 8 Shots 22 | . . . 2 . . . 1 . . . 2 . . . . . 1 1 1 . 1 . 6 1 2 . . . . . 1 3 . Rammed 14 | . . . . . . . . . 2 3 . . . . . . . . . . . . . . . . . . . . 2 1 6 Targets Rammed 14 | . . . . . . . . . 2 3 . . . . . . . . . . . . . . . . . . . . 2 1 6 Kicked . | . . . . . . . . . . . . . . . . . . . . . . . . . . . . . . . . . . Crushed . | . . . . . . . . . . . . . . . . . . . . . . . . . . . . . . . . . . Highest Temperature 351 | 126 153 9 192 . 147 124 249 43 258 337 3 280 9 . . . 125 21 18 1 4 298 183 351 235 25 . 100 102 272 32 224 44 Average Temperature 55 | 50 49 5 24 . 77 51 41 11 80 86 2 39 9 . . . 25 6 6 1 2 69 53 119 97 7 . 9 59 63 12 63 31 Received Heat Transfer 4676 | . 213 45 507 . . . 549 159 208 357 90 504 45 . . 9 183 200 59 36 . 196 333 90 135 57 21 39 . 75 141 87 338 Effects 7 | . . . . . . . . . 1 3 . . . . . . . . . . . 3 . . . . . . . . . . . Energy Bleed 1 | . . . . . . . . . 1 . . . . . . . . . . . . . . . . . . . . . . . . Interference 5 | . . . . . . . . . . 2 . . . . . . . . . . . 3 . . . . . . . . . . . Matter Decay 1 | . . . . . . . . . . 1 . . . . . . . . . . . . . . . . . . . . . . . Siege Activations . | . . . . . . . . . . . . . . . . . . . . . . . . . . . . . . . . . . Robots Corrupted . | . . . . . . . . . . . . . . . . . . . . . . . . . . . . . . . . . . Combat Hostiles . | . . . . . . . . . . . . . . . . . . . . . . . . . . . . . . . . . . Parts Fried 2 | . . . . . . . 1 . . . . . . . . . 1 . . . . . . . . . . . . . . . . Impact Corruptions . | . . . . . . . . . . . . . . . . . . . . . . . . . . . . . . . . . . Robots Melted . | . . . . . . . . . . . . . . . . . . . . . . . . . . . . . . . . . . Combat Hostiles . | . . . . . . . . . . . . . . . . . . . . . . . . . . . . . . . . . . Parts Melted 20 | . 2 . . . . . 1 4 . . . . . 2 . . 10 . . . . 1 . . . . . . . . . . . Heat Transferred 7738 | 375 1050 175 50 . . 222 . 1887 . 150 925 . . 407 . . 2047 100 . . . . . 250 . . . . . . 100 . . Parts Sabotaged 15 | . . . . . . . . . . . . . . . . . . . . . . . 6 . . 9 . . . . . . . Parts Stolen . | . . . . . . . . . . . . . . . . . . . . . . . . . . . . . . . . . . Parts Stripped . | . . . . . . . . . . . . . . . . . . . . . . . . . . . . . . . . . . Power Chain Reactions 1 | . . . . . . . . . . . . . . . . . 1 . . . . . . . . . . . . . . . . Alert | -11 -10 -10 -9 -9 -9 -8 -8 -8 -8 -7 -7 -7 -7 -7 -7 -6 -6 -6 -6 -6 -6 -6 -5 -5 -5 -5 -4 -4 -4 -4 -4 -3 -3 ------- Run | Yrd Mat Min Mat Min Exi Min Mat Gar Mat Fac Gar Fac Low Low Zio Pro Fac Ext Cet Arc Hub Gar Fac Upp Upp War Pro Fac Was Fac Arm Res Qua Peak Influence 3576 | 25 528 194 1866 787 . 217 509 2276 2008 2027 2673 2862 . . . . 2833 3576 3554 1648 1000 2781 3120 . . . . 709 169 607 836 1278 1660 Initial 2002 | . 16 129 . 727 . . 39 330 1109 1100 1418 1402 . . . . 86 1368 2002 1409 576 563 1459 . . . . 107 154 118 32 341 718 Average 1138 | 10 253 159 1072 763 . 119 262 1433 1548 1351 2051 1995 . . . . 866 2145 2525 1584 660 1753 1797 . . . . 356 158 326 435 621 1584 Maximum Alert Level 5 | . 2 . 5 3 . 1 2 5 5 5 5 5 . . . . 5 5 5 5 3 5 5 . . . . 3 . 2 3 4 5 Low Security (%) 13 | 100 39 100 4 . . 83 32 . . . . . . . . . 23 . . . . . . . . . . 33 100 23 26 . . Level 1 9 | . 41 . 1 . . 16 46 2 . . . . . . . . 7 . . . 29 . . . . . . 18 . 43 15 25 . Level 2 14 | . 19 . 10 . . . 20 18 . . . . . . . . 23 . . . 8 14 . . . . . 47 . 33 41 42 . Level 3 11 | . . . 33 100 . . . 9 . 10 . . . . . . 18 . . . 62 9 . . . . . . . . 15 17 . Level 4 20 | . . . 34 . . . . 27 63 71 16 17 . . . . 7 8 . 34 . 11 66 . . . . . . . . 14 . Level 5 22 | . . . 14 . . . . 41 17 4 83 61 . . . . 13 56 24 65 . 64 6 . . . . . . . . . . High Security 6 | . . . . . . . . . 19 13 . 20 . . . . 5 35 75 . . . 26 . . . . . . . . . . Max Security . | . . . . . . . . . . . . . . . . . . . . . . . . . . . . . . . . . 99 Squads Dispatched 191 | . 4 . 13 1 . . 7 . 8 18 . 22 . . . . 28 10 9 . 2 . 24 . . . . 7 . 16 7 6 9 Investigation 48 | . 4 . 10 1 . . 1 . 1 4 . 5 . . . . 6 . 1 . . . 2 . . . . 2 . 7 4 . . Extermination 18 | . . . . . . . . . . 1 . 2 . . . . 4 . . . 1 . 2 . . . . 3 . 3 . 2 . Reinforcement 44 | . . . . . . . 4 . 1 3 . 4 . . . . 12 1 . . 1 . 2 . . . . 2 . 6 3 3 2 Assault 79 | . . . 3 . . . . . 6 10 . 11 . . . . 6 9 8 . . . 18 . . . . . . . . 1 7 Garrison 2 | . . . . . . . 2 . . . . . . . . . . . . . . . . . . . . . . . . . . Intercept . | . . . . . . . . . . . . . . . . . . . . . . . . . . . . . . . . . . Searches Triggered 4 | . . . . . . . . . . . . . . . . . . . . . . . . . . . . 2 . 1 . 1 . Construction Impeded 11 | . . . . . . . 1 . . 2 . 2 . . . . 2 . . . 1 . 1 . . . . . . 1 . 1 . Haulers Reinforced 6 | . . . . . . . . . . 1 . 1 . . . . 3 . . . . . . . . . . 1 . . . . . Active Scanning Responses . | . . . . . . . . . . . . . . . . . . . . . . . . . . . . . . . . . . Cargo Convoy Interrupts 1 | . . . . . . . . . . . . . . . . . 1 . . . . . . . . . . . . . . . . Stealth | -11 -10 -10 -9 -9 -9 -8 -8 -8 -8 -7 -7 -7 -7 -7 -7 -6 -6 -6 -6 -6 -6 -6 -5 -5 -5 -5 -4 -4 -4 -4 -4 -3 -3 --------- Run | Yrd Mat Min Mat Min Exi Min Mat Gar Mat Fac Gar Fac Low Low Zio Pro Fac Ext Cet Arc Hub Gar Fac Upp Upp War Pro Fac Was Fac Arm Res Qua Distress Signals 33 | . 4 1 3 . . . 1 . 3 1 . 2 . . . . 3 2 1 . 1 . . . . . . 1 . 1 3 5 1 Communications Jammed . | . . . . . . . . . . . . . . . . . . . . . . . . . . . . . . . . . . Distress Signals . | . . . . . . . . . . . . . . . . . . . . . . . . . . . . . . . . . . Times Spotted 1177 | . 26 10 67 2 . 5 27 53 51 68 28 70 7 3 . 7 101 71 52 34 14 38 94 6 28 68 8 36 3 48 40 62 50 Peak Tracking Total 40 | . 7 2 5 2 . 4 5 6 21 13 6 10 4 1 . 3 14 20 15 1 5 6 13 4 10 11 5 10 3 7 13 13 40 Tactical Retreats 90 | . 4 1 1 1 . . 1 2 4 9 2 5 . . . . 3 1 . . . 9 3 1 2 2 . 6 . 15 8 8 2 Traps | -11 -10 -10 -9 -9 -9 -8 -8 -8 -8 -7 -7 -7 -7 -7 -7 -6 -6 -6 -6 -6 -6 -6 -5 -5 -5 -5 -4 -4 -4 -4 -4 -3 -3 ------- Run | Yrd Mat Min Mat Min Exi Min Mat Gar Mat Fac Gar Fac Low Low Zio Pro Fac Ext Cet Arc Hub Gar Fac Upp Upp War Pro Fac Was Fac Arm Res Qua Traps Triggered 47 | . 2 . 1 . . . 1 11 . 6 7 2 . . . . . . . . . 5 . 1 . . . 4 . 5 . 1 1 Indirectly . | . . . . . . . . . . . . . . . . . . . . . . . . . . . . . . . . . . Trap Hack Attempts . | . . . . . . . . . . . . . . . . . . . . . . . . . . . . . . . . . . Triggered . | . . . . . . . . . . . . . . . . . . . . . . . . . . . . . . . . . . Disarmed 16 | . . . . . . . . . . . . . . . . . . . . . . . 6 . . . . . . 6 . 4 . Reprogrammed 56 | . . . . . . . 4 . 6 . . . . . . . . . . . . . 8 . . . . 22 . 12 . 4 . Reused 16 | . . . . . . . 1 . . . . . 1 . . . . . . . . . 1 . 1 . . 9 . . . 3 . Traps Extracted . | . . . . . . . . . . . . . . . . . . . . . . . . . . . . . . . . . . Installed 20 | . . . . . . . . . . . . . 8 . . . . . . . . . . . 12 . . . . . . . . Triggered 41 | . . . . . . . 1 . . . . . 1 1 . . . 1 . . . . 1 . 1 22 . 9 . . 1 3 . Most Traps Carried 3 | . . . . . . . . . . . . . . . . . . . . . . . . . 3 . . . . . . . . Machines | -11 -10 -10 -9 -9 -9 -8 -8 -8 -8 -7 -7 -7 -7 -7 -7 -6 -6 -6 -6 -6 -6 -6 -5 -5 -5 -5 -4 -4 -4 -4 -4 -3 -3 ---------- Run | Yrd Mat Min Mat Min Exi Min Mat Gar Mat Fac Gar Fac Low Low Zio Pro Fac Ext Cet Arc Hub Gar Fac Upp Upp War Pro Fac Was Fac Arm Res Qua Machines Disabled 176 | . 1 . 13 . . 2 3 10 2 5 6 11 . . . 1 38 9 6 5 7 15 12 . 5 1 . 5 . 7 9 2 1 Max in Single Turn 13 | . 1 . 3 . . 1 1 2 1 3 1 2 . . . 1 13 2 4 1 3 2 1 . 2 1 . 4 . 3 1 1 1 Garrison Access 7 | . . . . . . . . . . . . . . . . . 4 . . . . . 1 . . . . . . 2 . . . Garrison Relay 16 | . . . . . . . . 6 . . 4 . . . . . . . . . . 6 . . . . . . . . . . . Phase Generator 2 | . . . . . . . . 1 . . . . . . . . . . . . . 1 . . . . . . . . . . . Network Hub 1 | . . . . . . . . . . . . . . . . . . . . . 1 . . . . . . . . . . . . Energy Cycler 2 | . . . . . . . . . . . . . . . . . . 1 . . . . . . . . . . . . 1 . . Machines Repaired . | . . . . . . . . . . . . . . . . . . . . . . . . . . . . . . . . . . Machines Dismantled . | . . . . . . . . . . . . . . . . . . . . . . . . . . . . . . . . . . Machines Sabotaged . | . . . . . . . . . . . . . . . . . . . . . . . . . . . . . . . . . . Overloaded Fab Kills . | . . . . . . . . . . . . . . . . . . . . . . . . . . . . . . . . . . Hacking | -11 -10 -10 -9 -9 -9 -8 -8 -8 -8 -7 -7 -7 -7 -7 -7 -6 -6 -6 -6 -6 -6 -6 -5 -5 -5 -5 -4 -4 -4 -4 -4 -3 -3 --------- Run | Yrd Mat Min Mat Min Exi Min Mat Gar Mat Fac Gar Fac Low Low Zio Pro Fac Ext Cet Arc Hub Gar Fac Upp Upp War Pro Fac Was Fac Arm Res Qua Machines Accessed 212 | . 7 . 16 1 5 . 5 3 10 15 3 13 . . . 1 27 1 1 . 11 2 16 1 2 7 . 22 . 26 10 7 . Terminals 120 | . 6 . 11 . . . 2 3 9 7 3 6 . . . . 12 1 1 . 10 2 10 . 1 . . 12 . 15 5 4 . Fabricators 26 | . . . . . . . . . . 2 . 4 . . . . 5 . . . . . 2 . . . . 4 . 4 5 . . Repair Stations 17 | . 1 . 2 . . . . . . 3 . 1 . . . . 4 . . . . . 2 . . . . 1 . 2 . 1 . Recycling Units 2 | . . . 1 . . . . . . . . . . . . . . . . . . . . . . . . . . . . 1 . Scanalyzers 14 | . . . 2 . . . 2 . 1 1 . 1 . . . . 2 . . . . . 1 . . . . 2 . 2 . . . Garrison Access 17 | . . . . . . . 1 . . 2 . 1 . . . . 4 . . . 1 . 1 . . . . 3 . 3 . 1 . Total Hacks 966 | . 31 . 66 1 50 . 10 5 35 36 5 38 . . . 1 86 3 3 . 63 8 100 1 7 19 . 155 . 160 51 32 . Successful 581 | . 9 . 45 1 50 . 7 3 20 16 2 18 . . . 1 48 1 . . 42 3 64 1 7 19 . 76 . 93 35 20 . Failed 377 | . 21 . 20 . . . 3 2 14 20 3 19 . . . . 38 2 3 . 20 5 35 . . . . 78 . 66 16 12 . Catastrophic 59 | . 3 . 2 . . . 1 1 1 5 2 5 . . . . 8 . 1 . 1 3 3 . . . . 11 . 6 1 5 . Database Lockouts 8 | . 1 . 1 . . . . . 1 . . 1 . . . . . . . . 1 . 1 . . . . 1 . 1 . . . Manual 343 | . 10 . 12 . 1 . . . 12 1 . 7 . . 1 . 18 1 1 . 22 7 49 . . 1 . 80 . 72 28 20 . Terminals 614 | . 26 . 42 . . . 4 5 25 16 5 19 . . . . 34 3 3 . 59 8 70 . 6 . . 107 . 121 37 24 . Fabricators 86 | . . . . . . . . . . 5 . 15 . . . . 15 . . . . . 4 . . . . 19 . 14 14 . . Repair Stations 67 | . 5 . 9 . . . . . . 8 . 2 . . . . 19 . . . . . 10 . . . . 4 . 7 . 3 . Recycling Units 7 | . . . 6 . . . . . . . . . . . . . . . . . . . . . . . . . . . . 1 . Scanalyzers 77 | . . . 9 . . . 5 . 10 4 . 1 . . . . 10 . . . . . 14 . . . . 13 . 11 . . . Garrison Access 42 | . . . . . . . 1 . . 3 . 1 . . . . 8 . . . 4 . 2 . . . . 12 . 7 . 4 . Terminal Hacks 328 | . 6 . 25 1 50 . 2 3 11 2 2 11 . . . 1 10 1 . . 35 3 27 1 7 19 . 39 . 47 16 9 . Record 98 | . . . 9 . 49 . . . . . . . . . . 1 . . . . 5 . . . 6 18 . 3 . 7 . . . Part Schematic 9 | . . . . . . . . . . . . 1 . . . . . . . . 4 . 1 . . . . 2 . 1 . . . Robot Schematic 7 | . . . . . . . . . . . . . . . . . . . . . 1 . 1 . . . . 2 . 2 1 . . Robot Analysis 27 | . 2 . 1 . . . . . 2 . . 1 . . . . . . . . 5 . 3 . . . . 4 . 7 1 1 . Prototype ID Bank 40 | . 2 . 3 . . . 1 . 3 1 . 2 . . . . 5 1 . . 4 . 1 . . . . 8 . 5 3 1 . Open Door 6 | . . . . 1 . . . 1 . . . . . . . . 1 . . . . . . 1 1 1 . . . . . . . Level Access Points 4 | . . . . . . . . . . . . . . . . . . . . . 1 . 1 . . . . . . . 1 1 . Branch Access Points 7 | . 1 . . . . . . . . . . 1 . . . . 1 . . . 1 . . . . . . 1 . . 1 1 . Emergency Access Points 9 | . . . 2 . . . . 1 . . . 1 . . . . . . . . . 1 1 . . . . 1 . 2 . . . Machine Index 3 | . . . . . . . . . . . . . . . . . 1 . . . . . . . . . . 1 . 1 . . . Terminal Index 6 | . . . 1 . . . . . 1 . . . . . . . . . . . 1 . 1 . . . . . . . 1 1 . Fabricator Index 1 | . . . . . . . . . . . . . . . . . . . . . . . . . . . . 1 . . . . . Repair Station Index 1 | . . . . . . . . . . . . . . . . . . . . . . . 1 . . . . . . . . . . Alert Level 2 | . . . . . . . . . . . . . . . . . . . . . 1 . . . . . . . . 1 . . . Unreport Threat 8 | . . . . . . . . . . . . . . . . . . . . . 2 . . . . . . 2 . 4 . . . Locate Traps 1 | . . . . . . . . . . . . . . . . . . . . . . . . . . . . . . 1 . . . Disarm Traps 3 | . . . . . . . . . . . . . . . . . . . . . . . 1 . . . . . . 1 . 1 . Reprogram Traps 12 | . . . . . . . 1 . 1 . . . . . . . . . . . . . 3 . . . . 4 . 2 . 1 . Dispatch Records 2 | . . . 2 . . . . . . . . . . . . . . . . . . . . . . . . . . . . . . Security Status 2 | . . . 1 . . . . . . . . . . . . . . . . . . . 1 . . . . . . . . . . Surveillance Status 1 | . . . . . . . . . . . . . . . . . . . . . . . 1 . . . . . . . . . . Patrol Status 2 | . . . . . . . . . . . . . . . . . . . . . 1 . 1 . . . . . . . . . . Transport Status 1 | . . . 1 . . . . . . . . . . . . . . . . . . . . . . . . . . . . . . Garrison Status 1 | . . . . . . . . . . . . . . . . . . . . . . . 1 . . . . . . . . . . Recall Investigation 9 | . . . 2 . . . . . . . . 1 . . . . 1 . . . . . . . . . . 1 . 1 3 . . Recall Extermination 9 | . . . . . . . . . . . . . . . . . . . . . 1 . 2 . . . . 3 . 2 . 1 . Recall Reinforcements 3 | . . . . . . . . . . . . . . . . . . . . . . . . . . . . . . 2 1 . . Recall Assault 2 | . . . . . . . . . . . . . . . . . . . . . . . 1 . . . . 1 . . . . . Hauler Manifests 1 | . . . . . . . . . . . . . . . . . . . . . 1 . . . . . . . . . . . . Registered Components 5 | . . . . . . . . . . . . . . . . . 1 . . . 1 . 1 . . . . . . 1 1 . . Registered Prototypes 1 | . . . . . . . . . . . . . . . . . . . . . 1 . . . . . . . . . . . . Zone Layout 39 | . 1 . 3 . . . . . 4 1 . 4 . . . . . . . . 5 . 5 . . . . 5 . 7 3 1 . Garrison Registry 2 | . . . . . . . . . . . 1 . . . . . . . . . . 1 . . . . . . . . . . . Patrol Navigation 3 | . . . . . . . . 1 . . 1 . . . . . . . . . . 1 . . . . . . . . . . . Derelict Proto ID Bank 1 | . . . . . 1 . . . . . . . . . . . . . . . . . . . . . . . . . . . . Fabricator Hacks 49 | . . . . . . . . . . 4 . 7 . . . . 10 . . . . . 4 . . . . 6 . 8 10 . . Network Status 7 | . . . . . . . . . . . . . . . . . 1 . . . . . 2 . . . . 2 . 1 1 . . Load Schematic 21 | . . . . . . . . . . 2 . 4 . . . . 5 . . . . . 1 . . . . 2 . 3 4 . . Build 21 | . . . . . . . . . . 2 . 3 . . . . 4 . . . . . 1 . . . . 2 . 4 5 . . Repair Station Hacks 45 | . 3 . 8 . . . . . . 6 . . . . . . 11 . . . . . 7 . . . . 2 . 6 . 2 . Scan Component 24 | . 2 . 4 . . . . . . 3 . . . . . . 6 . . . . . 4 . . . . 1 . 3 . 1 . Repair 21 | . 1 . 4 . . . . . . 3 . . . . . . 5 . . . . . 3 . . . . 1 . 3 . 1 . Recycling Unit Hacks 5 | . . . 4 . . . . . . . . . . . . . . . . . . . . . . . . . . . . 1 . Process 1 | . . . 1 . . . . . . . . . . . . . . . . . . . . . . . . . . . . . . Report Inventory 1 | . . . 1 . . . . . . . . . . . . . . . . . . . . . . . . . . . . . . Retrieve Matter 1 | . . . 1 . . . . . . . . . . . . . . . . . . . . . . . . . . . . . . Retrieve Components 2 | . . . 1 . . . . . . . . . . . . . . . . . . . . . . . . . . . . 1 . Scanalyzer 62 | . . . 8 . . . 4 . 9 2 . . . . . . 9 . . . . . 12 . . . . 8 . 10 . . . Insert Component 32 | . . . 4 . . . 2 . 5 2 . . . . . . 4 . . . . . 6 . . . . 4 . 5 . . . Analyze 30 | . . . 4 . . . 2 . 4 . . . . . . . 5 . . . . . 6 . . . . 4 . 5 . . . Garrison Access Hacks 15 | . . . . . . . 1 . . 2 . . . . . . 4 . . . 1 . 1 . . . . 2 . 3 . 1 . Unlock Access 8 | . . . . . . . 1 . . 2 . . . . . . . . . . 1 . . . . . . 2 . 1 . 1 . Seal Access 7 | . . . . . . . . . . . . . . . . . 4 . . . . . 1 . . . . . . 2 . . . Unauthorized Hacks 77 | . . . . . . . . . . . . . . . . . 4 . . . 6 . 13 . . . . 19 . 19 9 7 . Terminals 62 | . . . . . . . . . . . . . . . . . 3 . . . 5 . 12 . . . . 14 . 15 8 5 . Assimilate 17 | . . . . . . . . . . . . . . . . . . . . . 3 . 3 . . . . 3 . 4 3 1 . Botnet 45 | . . . . . . . . . . . . . . . . . 3 . . . 2 . 9 . . . . 11 . 11 5 4 . Fabricators 7 | . . . . . . . . . . . . . . . . . . . . . . . . . . . . 4 . 2 1 . . Fabnet 7 | . . . . . . . . . . . . . . . . . . . . . . . . . . . . 4 . 2 1 . . Repair Stations . | . . . . . . . . . . . . . . . . . . . . . . . . . . . . . . . . . . Recycling Units . | . . . . . . . . . . . . . . . . . . . . . . . . . . . . . . . . . . Scanalyzers . | . . . . . . . . . . . . . . . . . . . . . . . . . . . . . . . . . . Garrison Access 8 | . . . . . . . . . . . . . . . . . 1 . . . 1 . 1 . . . . 1 . 2 . 2 . Broadcast 2 | . . . . . . . . . . . . . . . . . . . . . . . . . . . . . . 1 . 1 . Watchers 6 | . . . . . . . . . . . . . . . . . 1 . . . 1 . 1 . . . . 1 . 1 . 1 . Data Cores Recovered 5 | . . . . . . . . . 1 1 . . . . . . 2 . . . 1 . . . . . . . . . . . . Used 1 | . . . . . . . . . . . . . . . . . 1 . . . . . . . . . . . . . . . . Hacking Detections 165 | . 7 . 16 . . . 4 2 9 14 2 13 . . . . 23 1 1 . 9 2 12 . . . . 18 . 20 7 5 . Full Trace Events 53 | . 5 . 13 . . . 1 1 2 4 2 4 . . . . 6 . 1 . . . 2 . . . . 2 . 6 4 . . Feedback Events . | . . . . . . . . . . . . . . . . . . . . . . . . . . . . . . . . . . Feedback Blocked . | . . . . . . . . . . . . . . . . . . . . . . . . . . . . . . . . . . Robot Schematics Acquired 10 | . . . . . . . . . . . . . . . 3 . . . . . 1 . 1 . . . . 2 . 2 1 . . Robots Built 26 | . . . . . . . . . . . . . . . . . 8 . . . . . 2 . . . . . . 6 10 . . Authchips . | . . . . . . . . . . . . . . . . . . . . . . . . . . . . . . . . . . Time 1418 | . . . . . . . . . . . . . . . . . 469 . . . . . 152 . . . . . . 309 488 . . Total Robot Build Rating 138 | . . . . . . . . . . . . . . . . . 32 . . . . . 10 . . . . . . 36 60 . . Part Schematics Acquired 49 | . . . 3 . . . 2 . 4 . . 1 . . 14 . 2 . . . 4 . 7 . . . . 6 . 6 . . . Parts Built 14 | . . . . . . . . . . 4 . 6 . . . . . . . . . . . . . . . 2 . 2 . . . Authchips . | . . . . . . . . . . . . . . . . . . . . . . . . . . . . . . . . . . Time 567 | . . . . . . . . . . 72 . 151 . . . . . . . . . . . . . . . 286 . 58 . . . Total Part Build Rating 59 | . . . . . . . . . . 12 . 20 . . . . . . . . . . . . . . . 13 . 14 . . . Parts Repaired 21 | . 1 . 4 . . . . . . 3 . . . . . . 5 . . . . . 3 . . . . 1 . 3 . 1 . Time 808 | . 36 . 167 . . . . . . 92 . . . . . . 114 . . . . . 79 . . . . 31 . 258 . 31 . Parts Recycled . | . . . . . . . . . . . . . . . . . . . . . . . . . . . . . . . . . . Recycled Matter 120 | . . . 120 . . . . . . . . . . . . . . . . . . . . . . . . . . . . . . Retrieved Matter 296 | . . . 296 . . . . . . . . . . . . . . . . . . . . . . . . . . . . . . Retrieved Components 2 | . . . . . . . . . . . . . . . . . . . . . . . . . . . . . . . . 2 . Parts Scanalyzed 28 | . . . 3 . . . 2 . 4 1 . . . . . . 3 . . . . . 6 . . . . 4 . 5 . . . Part Schematics Acquired 26 | . . . 3 . . . 2 . 4 . . . . . . . 2 . . . . . 6 . . . . 4 . 5 . . . Parts Damaged 5 | . . . 1 . . . . . . 1 . . . . . . . . . . . . 2 . . . . . . 1 . . . Bothacking | -11 -10 -10 -9 -9 -9 -8 -8 -8 -8 -7 -7 -7 -7 -7 -7 -6 -6 -6 -6 -6 -6 -6 -5 -5 -5 -5 -4 -4 -4 -4 -4 -3 -3 ------------ Run | Yrd Mat Min Mat Min Exi Min Mat Gar Mat Fac Gar Fac Low Low Zio Pro Fac Ext Cet Arc Hub Gar Fac Upp Upp War Pro Fac Was Fac Arm Res Qua Used RIF Installer . | . . . . . . . . . . . . . . . . . . . . . . . . . . . . . . . . . . Robots Hacked 8 | . . . . . . . . . . . . . . . . . . . . . . . . . . . . . . . . 3 5 Non-combat . | . . . . . . . . . . . . . . . . . . . . . . . . . . . . . . . . . . Combat 8 | . . . . . . . . . . . . . . . . . . . . . . . . . . . . . . . . 3 5 Robot Hacks Applied . | . . . . . . . . . . . . . . . . . . . . . . . . . . . . . . . . . . Relay Couplers Released 70 | . . . . . . . . 24 . . 19 3 . . . . 2 . . . . 22 . . . . . . . . . . . Machine Destruction 64 | . . . . . . . . 21 . . 19 . . . . . 2 . . . . 22 . . . . . . . . . . . Programmers 6 | . . . . . . . . 3 . . . 3 . . . . . . . . . . . . . . . . . . . . . Fabnet Peak Effective % 15 | . . . . . . . . . . . . . . . . . . . . . . . . . . . . . . . . 15 15 Autooverrided 8 | . . . . . . . . . . . . . . . . . . . . . . . . . . . . . . . . 3 5 Robots Rewired 45 | . . . . . . . . 24 . . . . . . . . 2 10 . . . 4 . . . 5 . . . . . . . Allies Hacked . | . . . . . . . . . . . . . . . . . . . . . . . . . . . . . . . . . . Hacks Repelled . | . . . . . . . . . . . . . . . . . . . . . . . . . . . . . . . . . . Allies | -11 -10 -10 -9 -9 -9 -8 -8 -8 -8 -7 -7 -7 -7 -7 -7 -6 -6 -6 -6 -6 -6 -6 -5 -5 -5 -5 -4 -4 -4 -4 -4 -3 -3 -------- Run | Yrd Mat Min Mat Min Exi Min Mat Gar Mat Fac Gar Fac Low Low Zio Pro Fac Ext Cet Arc Hub Gar Fac Upp Upp War Pro Fac Was Fac Arm Res Qua Total Allies 111 | . . 1 . . . . . 26 . . . . . . 12 . 13 12 5 . 1 4 3 . . 5 . 1 . 8 11 4 5 Largest Group 16 | . . 1 . . . . . 16 16 . . . . . 12 12 11 8 7 1 2 4 2 . . 5 . 1 . 2 2 3 2 Highest-Rated Group 678 | . . 31 . . . . . 338 338 . . . . . 338 338 324 386 678 84 94 68 82 . . 247 . 10 . 108 108 153 128 Highest-Rated Ally 159 | . . 31 . . . . . 40 40 . . . . . 51 51 51 159 159 84 84 32 41 . . 68 . 10 . 54 54 58 64 Warlord Squad Rendezvous 11 | . . . . . . . . . . . . . . . . . 7 . . . . . 4 . . . . . . . . . . Dakka 1 | . . . . . . . . . . . . . . . . . 1 . . . . . . . . . . . . . . . . Infantry 3 | . . . . . . . . . . . . . . . . . 2 . . . . . 1 . . . . . . . . . . Muscle 2 | . . . . . . . . . . . . . . . . . 1 . . . . . 1 . . . . . . . . . . Pyro 2 | . . . . . . . . . . . . . . . . . 1 . . . . . 1 . . . . . . . . . . Chimera 1 | . . . . . . . . . . . . . . . . . 1 . . . . . . . . . . . . . . . . Ghost 2 | . . . . . . . . . . . . . . . . . 1 . . . . . 1 . . . . . . . . . . Total Orders 28 | . . . . . . . . 2 . . . . . . . . 13 . 4 3 1 . 5 . . . . . . . . . . STAY 12 | . . . . . . . . 1 . . . . . . . . 6 . 3 1 1 . . . . . . . . . . . . FOLLOW 9 | . . . . . . . . 1 . . . . . . . . 3 . 1 2 . . 2 . . . . . . . . . . EXPLORE 3 | . . . . . . . . . . . . . . . . . . . . . . . 3 . . . . . . . . . . RETURN 4 | . . . . . . . . . . . . . . . . . 4 . . . . . . . . . . . . . . . . Ally Attacks 830 | . . 7 . . . . . 99 147 . . . . . . 41 98 169 95 10 12 18 3 . . 46 . . . 7 34 34 10 Total Damage 20233 | . . 104 . . . . . 2214 2771 . . . . . . 593 2061 3974 3353 334 341 389 98 . . 1685 . . . 205 1359 295 457 Kills 149 | . . 4 . . . . . 30 27 . . . . . . 8 17 28 18 2 3 1 . . . 4 . . . . 5 1 1 Allies Corrupted 2 | . . . . . . . . . . . . . . . . . . . . . . 1 1 . . . . . . . . . . Allies Melted 3 | . . . . . . . . . 1 . . . . . . . . . . . . . . . . 1 . . . . . 1 . Intel | -11 -10 -10 -9 -9 -9 -8 -8 -8 -8 -7 -7 -7 -7 -7 -7 -6 -6 -6 -6 -6 -6 -6 -5 -5 -5 -5 -4 -4 -4 -4 -4 -3 -3 ------- Run | Yrd Mat Min Mat Min Exi Min Mat Gar Mat Fac Gar Fac Low Low Zio Pro Fac Ext Cet Arc Hub Gar Fac Upp Upp War Pro Fac Was Fac Arm Res Qua Robot Analysis Total 27 | . 2 . 1 . . . . . 2 . . 1 . . . . . . . . 5 . 3 . . . . 4 . 7 1 1 . Derelict Logs Recovered 14 | . . 1 . 1 . . . . . . . . 3 2 2 1 . . . . . . . 2 2 . . . . . . . . Drone Launches 30 | . . . . . . . . . . . . . . . . . 4 . . . . . 22 . . . . . . 4 . . . Drone Recoveries 20 | . . . . . . . . . . . . . . . . . 4 . . . . . 16 . . . . . . . . . . Exploration | -11 -10 -10 -9 -9 -9 -8 -8 -8 -8 -7 -7 -7 -7 -7 -7 -6 -6 -6 -6 -6 -6 -6 -5 -5 -5 -5 -4 -4 -4 -4 -4 -3 -3 ------------- Run | Yrd Mat Min Mat Min Exi Min Mat Gar Mat Fac Gar Fac Low Low Zio Pro Fac Ext Cet Arc Hub Gar Fac Upp Upp War Pro Fac Was Fac Arm Res Qua Turns Passed 33074 | 89 441 415 3166 268 204 615 665 1754 746 1553 1094 1150 1009 468 722 605 3241 682 276 292 522 2414 1408 562 2140 1756 276 1118 33 1969 416 879 126 Spaces Moved 39532 | 47 528 816 3124 278 252 479 593 2084 999 2145 1385 1422 1113 904 1170 664 4066 736 302 198 738 2075 1534 932 1328 1438 221 1660 109 3945 857 1204 186 Core 215 | 2 . . . . . . . . . . . . . . . . . . . . . . . . . . 1 1 . . 97 71 43 Treads 564 | . . . . . . . . . . . . . . . . . . . . . . . . . 479 85 . . . . . . . Legs 936 | . . . . . . . . . . . . . . . . 27 . . . . . . . . 231 678 . . . . . . . Wheels 3155 | 45 121 . 1704 278 252 479 213 . . . . . . . . . . . . . . . . . . . . 63 . . . . . Hover 25995 | . . . 20 . . . 380 2084 999 2145 1385 1422 1113 904 1170 637 4066 736 302 198 738 2075 1534 932 618 630 220 472 . . . 1109 106 Flight 8667 | . 407 816 1400 . . . . . . . . . . . . . . . . . . . . . . 45 . 1124 109 3945 760 24 37 Fastest Speed 21 | 50 37 37 31 80 80 80 38 38 45 44 40 40 40 45 45 45 44 40 47 46 46 46 40 50 56 45 57 28 25 21 26 44 32 Average Speed 54 | 85 46 37 59 80 80 80 55 45 46 46 43 42 69 47 45 76 53 44 53 55 46 67 60 54 141 102 99 44 25 24 29 51 44 Slowest Speed 600 | 90 80 37 120 80 80 80 250 103 48 112 108 116 111 111 45 190 126 105 115 121 46 106 105 111 290 600 350 450 25 106 111 60 116 Overloaded Moves . | . . . . . . . . . . . . . . . . . . . . . . . . . . . . . . . . . . Propulsion Burnouts . | . . . . . . . . . . . . . . . . . . . . . . . . . . . . . . . . . . Robots Hopped 57 | . 8 5 10 . . . . . . . . . . . . . . . . . . . . . . . . 9 2 17 . . 6 Cave-ins Triggered . | . . . . . . . . . . . . . . . . . . . . . . . . . . . . . . . . . . Exploration Rate (%) 67 | 3 70 99 98 68 62 89 32 97 64 41 87 39 94 95 86 64 74 70 49 84 46 92 47 89 98 94 54 48 84 70 56 37 29 Regions Visited 33 Branch Regions 18 Pre-discovered Areas 6 | . . . . . 1 . . . . . . . 1 1 3 . . . . . . . . . . . . . . . . . . Known Exits Taken 19 | . 1 . 1 . . 1 1 . 1 1 . 1 1 1 1 1 1 . . . 1 . 1 1 . . 1 . . 1 1 1 . Unknown Exits Taken 9 | 1 . 1 . 1 1 . . . . . . . . . . . . 1 1 1 . . . . 1 1 . . . . . . . Scrap Searched 21 | . . 1 . 1 . 1 . . . . . . 3 2 2 1 . . . . . . . 4 5 . 1 . . . . . . Spaces Dug 139 | . . . . . . . . . . . . . . . . 3 23 17 . . . 1 1 . 1 1 . 17 . 39 30 6 . Terrain Destroyed 4054 | . . . 287 . . 2 70 84 1 54 60 180 93 19 . 3 748 325 276 4 251 278 410 62 169 50 81 62 . 90 124 271 . Melee 70 | . . . . . . . . . . . . . . . . 3 14 1 . . . . 1 . 1 . . 15 . 25 4 6 . Projectile 168 | . . . . . . 2 . . 1 1 6 24 13 2 . . 9 . . 4 4 15 16 1 13 14 1 5 . 29 . 8 . AOE 3811 | . . . 287 . . . 70 84 . 53 54 156 80 17 . . 725 324 276 . 247 258 393 61 155 36 80 42 . 36 120 257 . Terrain Rammed . | . . . . . . . . . . . . . . . . . . . . . . . . . . . . . . . . . . Walls Destroyed . | . . . . . . . . . . . . . . . . . . . . . . . . . . . . . . . . . . Machines Disabled . | . . . . . . . . . . . . . . . . . . . . . . . . . . . . . . . . . . Actions | -11 -10 -10 -9 -9 -9 -8 -8 -8 -8 -7 -7 -7 -7 -7 -7 -6 -6 -6 -6 -6 -6 -6 -5 -5 -5 -5 -4 -4 -4 -4 -4 -3 -3 --------- Run | Yrd Mat Min Mat Min Exi Min Mat Gar Mat Fac Gar Fac Low Low Zio Pro Fac Ext Cet Arc Hub Gar Fac Upp Upp War Pro Fac Was Fac Arm Res Qua Total 47763 | 69 613 895 3821 297 255 569 769 2813 1218 2512 1799 1740 1320 941 1367 751 4922 1018 383 304 893 2774 1843 963 1532 1672 272 1977 112 4743 1003 1385 218 Wait 4076 | . 24 53 197 . . 4 36 376 102 115 226 110 169 19 176 81 509 161 50 21 131 356 110 2 70 51 41 174 2 569 65 70 6 Move 39392 | 46 512 805 3103 277 251 478 592 2083 999 2145 1382 1421 1112 903 1169 663 4065 735 301 197 737 2074 1533 931 1327 1437 220 1642 105 3911 856 1203 177 Hop 51 | . 7 5 10 . . . . . . . . . . . . . . . . . . . . . . . . 9 1 16 . . 3 Pick Up 284 | 2 5 5 21 1 . 1 9 13 13 12 9 9 2 5 6 1 30 5 2 4 . 28 21 5 9 14 1 20 1 15 5 7 3 Fast Attach 289 | 8 1 1 25 1 1 1 13 6 4 23 3 16 1 1 2 1 33 7 3 8 2 10 18 3 12 25 1 16 . 18 5 17 3 Attach 223 | . 3 2 15 . . 2 5 11 3 8 5 7 2 4 2 . 19 4 2 . . 5 12 1 14 13 4 26 2 25 15 9 3 Detach 163 | . 1 . 15 1 1 . 2 7 3 5 1 6 3 5 2 . 15 1 . 3 1 3 2 . 16 15 . 19 . 21 13 2 . Swap 352 | 1 3 2 45 2 . 5 12 11 14 18 17 29 2 . 1 . 43 8 . 7 6 21 30 7 3 11 . 9 . 32 4 9 . Drop 454 | 1 5 3 51 1 2 6 17 20 24 27 12 27 1 3 8 1 56 7 1 8 . 16 24 3 14 37 . 19 1 29 16 12 2 Fire 1690 | 11 52 19 339 14 . 72 83 32 55 144 53 115 20 1 . . 83 27 21 53 16 187 88 11 45 35 5 7 . 52 9 41 . Melee 249 | . . . . . . . . 28 . . . . . . 1 4 61 17 3 3 . 1 2 . 10 1 . 36 . 52 13 14 3 Ram 12 | . . . . . . . . . 1 2 . . . . . . . . . . . . . . . . . . . . 2 1 6 Kick . | . . . . . . . . . . . . . . . . . . . . . . . . . . . . . . . . . . Crush . | . . . . . . . . . . . . . . . . . . . . . . . . . . . . . . . . . . Escape Stasis 211 | . . . . . . . . 62 . 13 91 . . . . . . . . . . 31 . . . . . . . 2 . . 12 Rewire 293 | . . . . . . . . 164 . . . . . . . . 8 46 . . . 42 . . . 33 . . . . . . . Trap 20 | . . . . . . . . . . . . . 8 . . . . . . . . . . . 12 . . . . . . . . Miscellaneous 4 | . . . . . . . . . . . . . . . . . . . . . . . 3 . . . . . . 1 . . . Route ------- -11/Scrapyard -10/Materials (discovered 2 exits: *Min x2) -10/Mines (discovered 3 exits: *Mat x2 / [*Sub]) -9/Materials (discovered 5 exits: *Mat x3 / *Min x2) -9/Mines (discovered 3 exits: *Mat / *Exi / *Zio) -9/Exiles (discovered 2 exits: [*Min x2]) -8/Mines -8/Materials -8/Garrison (discovered 3 exits: *Mat x3) -8/Materials (discovered 2 exits: *Fac x2) -7/Factory (discovered 4 exits: Sto / *Low / Gar / Gar) -7/Garrison (discovered 3 exits: *Fac x3) -7/Factory (discovered 3 exits: Sto / *Low x2) -7/Lower Caves -7/Lower Caves (discovered 2 exits: *Fac / *Zio) -7/Zion (discovered 2 exits: Dee / *Pro) -6/Proximity Caves -6/Factory (discovered 8 exits: *Fac x4 / Low x2 / *Ext x2) -6/Extension (discovered 3 exits: *Fac x2 / *Cet) -6/Cetus -6/Archives (discovered 3 exits: *Fac / *Hub x2) -6/Hub_04(d) (discovered 5 exits: *Fac x4 / Gar) -6/Garrison (discovered 3 exits: *Fac x3) -5/Factory (discovered 5 exits: *Fac x4 / *Upp) -5/Upper Caves -5/Upper Caves (discovered 2 exits: *Fac / *War) -5/Warlord -4/Proximity Caves -4/Factory (discovered 7 exits: *Res x2 / Upp x2 / Arm / Gar / Gar) -4/Waste -4/Factory (discovered 7 exits: *Res x3 / *Upp x2 / *Arm / Gar) -4/Armory (discovered 2 exits: *Res x2) -3/Research (discovered 6 exits: *Res x3 / *Qua x2 / Gar) -3/Quarantine (discovered 1 exit: *Res) History --------- Turn | Location | Event 33 | -11/Scrapyard | Discovered new exit (range 15) 90 | -11/Scrapyard | Entered Materials 146 | -10/Materials | Discovered new exit (range 9) 162 | -10/Materials | Discovered new exit (range 6) 308 | -10/Materials | Repaired Broken Flight Unit? 430 | -10/Materials | Central database locked down 438 | -10/Materials | Identified exit to Mines 531 | -10/Materials | Entered Mines 545 | -10/Mines | Build established: Mutant 620 | -10/Mines | A weapon hastily lodged in a ceiling crevice suddenly fell to the ground 625 | -10/Mines | Assembled infested the area 627 | -10/Mines | Received a Mining Laser from a helpful Derelict 631 | -10/Mines | Assisted by a Guerilla fighting off Assembled 675 | -10/Mines | Found a damaged Exp. Sensor Array with a note attached 676 | -10/Mines | Found Prototype Device 721 | -10/Mines | Core integrity fell below 50% 760 | -10/Mines | Discovered new exit (range 16) 796 | -10/Mines | Discovered new exit (range 10) 797 | -10/Mines | Learned location of 1 exit from Materials 803 | -10/Mines | Received a Rocket Launcher from a helpful Derelict 901 | -10/Mines | Discovered new exit (range 4) 946 | -10/Mines | Entered Materials 946 | -9/Materials | Evolved 2 slots: Propulsion x2 947 | -9/Materials | Identified exit to Mines 949 | -9/Materials | Central database locked down 1180 | -9/Materials | Discovered new exit (range 20) 1196 | -9/Materials | Identified exit to Materials 1384 | -9/Materials | Discovered exit to Mines (range 11) 1414 | -9/Materials | Build established: Scavenger-Sprinter 1492 | -9/Materials | Lost 3 parts (2n1w) 1525 | -9/Materials | Discovered exit to Materials (range 15) 1599 | -9/Materials | Repaired Broken Imp. Flight Unit 1628 | -9/Materials | Repaired Flight Unit 1781 | -9/Materials | Repaired Imp. Assault Rifle 1808 | -9/Materials | Repaired Flight Unit 1858 | -9/Materials | Discovered exit to Materials (range 16) 2146 | -9/Materials | First assault squad dispatched 2159 | -9/Materials | Core integrity fell below 50% 2740 | -9/Materials | Build established: Scavenger-Mutant 4112 | -9/Materials | Entered Mines 4258 | -9/Mines | A Derelict revealed a hidden shortcut to a safe place 4312 | -9/Mines | Met a Derelict shopkeep closing up shop 4364 | -9/Mines | Discovered exit to Materials (range 13) 4377 | -9/Mines | Deemed a non-threat by the Exiles lab entrance 4377 | -9/Mines | Discovered new exit (range 5) 4380 | -9/Mines | Entered Exiles 4391 | -9/Exiles | Discovered new exit (range 15) 4402 | -9/Exiles | Met 8R-AWN 4414 | -9/Exiles | Met EX-HEX 4436 | -9/Exiles | Met EX-BIN 4446 | -9/Exiles | Aligned with FarCom system 4447 | -9/Exiles | Given EX-Vault access code 4478 | -9/Exiles | Opened EX-Vault 4484 | -9/Exiles | Found AWS/Thermal 4504 | -9/Exiles | Warned to stay clear of 0b10 Research branches 4526 | -9/Exiles | Met EX-DEC 4532 | -9/Exiles | Learned location of Zion (-7) 4577 | -9/Exiles | Discovered new exit (range 10) 4584 | -9/Exiles | Left Exiles lab with AWS/Thermal 4584 | -9/Exiles | Entered Mines 4854 | -8/Mines | Discovered exit to Materials (range 12) 5199 | -8/Mines | Entered Materials 5199 | -8/Materials | Evolved 2 slots: Utility x2 5220 | -8/Materials | Identified exit to Garrison 5244 | -8/Materials | Identified Exp. Sensor Array 5740 | -8/Materials | Garrison activated, responded to threat 5792 | -8/Materials | Build established: Mutant 5864 | -8/Materials | Entered Garrison 5882 | -8/Garrison | Triggered checkpoint 5971 | -8/Garrison | Garrison Relay disabled 5982 | -8/Garrison | Triggered checkpoint 6000 | -8/Garrison | Triggered checkpoint 6032 | -8/Garrison | Triggered checkpoint 6242 | -8/Garrison | Triggered checkpoint 6245 | -8/Garrison | Triggered checkpoint 6330 | -8/Garrison | Triggered checkpoint 6352 | -8/Garrison | Garrison Relay disabled 6364 | -8/Garrison | Triggered checkpoint 6421 | -8/Garrison | Garrison Relay disabled 6432 | -8/Garrison | Triggered checkpoint 6440 | -8/Garrison | Discovered new exit (range 5) 6606 | -8/Garrison | Discovered new exit (range 14) 6840 | -8/Garrison | Triggered checkpoint 6854 | -8/Garrison | Garrison Relay disabled 6872 | -8/Garrison | Triggered checkpoint 6889 | -8/Garrison | Build established: Commander-Mutant 6916 | -8/Garrison | Discovered new exit (range 14) 6920 | -8/Garrison | Triggered checkpoint 6945 | -8/Garrison | Garrison Relay disabled 7063 | -8/Garrison | Lost 3 allies 7095 | -8/Garrison | Lost 3 allies 7101 | -8/Garrison | Rescued a captive Derelict 7102 | -8/Garrison | Rescued a captive Derelict 7352 | -8/Garrison | Phase Generator disabled 7457 | -8/Garrison | Garrison Relay disabled 7618 | -8/Garrison | Entered Materials 7618 | -8/Materials | Accompanied by 16 allies 7688 | -8/Materials | Discovered new exit (range 3) 7694 | -8/Materials | Lost 4 allies 7718 | -8/Materials | Identified exit to Factory 7780 | -8/Materials | Found Prototype Device 7782 | -8/Materials | Lost 7 allies 7784 | -8/Materials | Core integrity fell below 50% 7800 | -8/Materials | Central database locked down 7879 | -8/Materials | Identified Active Sensor Suite 8018 | -8/Materials | First assault squad dispatched 8042 | -8/Materials | Build established: Scavenger-Mutant 8216 | -8/Materials | Discovered exit to Factory (range 15) 8218 | -8/Materials | High security lockdown imminent 8298 | -8/Materials | High security lockdown engaged 8364 | -8/Materials | Entered Factory 8364 | -7/Factory | Evolved 2 slots: Propulsion x1, Utility x1 8365 | -7/Factory | Identified exit to Storage 8382 | -7/Factory | Lost 3 allies 8416 | -7/Factory | Identified exit to Garrison 8519 | -7/Factory | Lost 3 parts (1p2n) 8648 | -7/Factory | Repaired Imp. Hover Unit 8680 | -7/Factory | Discovered new exit (range 5) 8695 | -7/Factory | Identified exit to Garrison 8764 | -7/Factory | First assault squad dispatched 9117 | -7/Factory | Fabricated Airjet (x2) 9449 | -7/Factory | Repaired Imp. Hover Unit 9615 | -7/Factory | Fabricated Airjet? 9627 | -7/Factory | Repaired Enh. Autogun? 9709 | -7/Factory | High security lockdown imminent 9789 | -7/Factory | High security lockdown engaged 9917 | -7/Factory | Entered Garrison 9934 | -7/Garrison | Garrison Relay disabled 10012 | -7/Garrison | Triggered checkpoint 10154 | -7/Garrison | Discovered new exit (range 14) 10174 | -7/Garrison | Destroyed 9 combat bots 10210 | -7/Garrison | Garrison Relay disabled 10385 | -7/Garrison | Discovered new exit (range 13) 10434 | -7/Garrison | Triggered checkpoint 10456 | -7/Garrison | Garrison Relay disabled 10460 | -7/Garrison | Discovered new exit (range 41) 10460 | -7/Garrison | Discovered new exit (range 7) 10460 | -7/Garrison | Discovered new exit (range 53) 10754 | -7/Garrison | Triggered checkpoint 10798 | -7/Garrison | Triggered checkpoint 10810 | -7/Garrison | Garrison Relay disabled 10868 | -7/Garrison | Build established: Mutant 10939 | -7/Garrison | Attempted to access garrison exit controls, blocked by remote lockdown 10976 | -7/Garrison | Attempted to access garrison exit controls, blocked by remote lockdown 11011 | -7/Garrison | Entered Factory 11052 | -7/Factory | Identified exit to Lower Caves 11201 | -7/Factory | Fabricated Airjet? 11411 | -7/Factory | First assault squad dispatched 11420 | -7/Factory | Central database locked down 11481 | -7/Factory | Core integrity fell below 50% 11520 | -7/Factory | Lost 4 parts (4n) 11784 | -7/Factory | Fabricated Lyr. Light Armor Plating (x2) 11887 | -7/Factory | Build established: Scavenger-Mutant 11895 | -7/Factory | Fabricated Airjet? 11921 | -7/Factory | High security lockdown imminent 11974 | -7/Factory | Destroyed 7 combat bots 12001 | -7/Factory | High security lockdown engaged 12161 | -7/Factory | Entered Lower Caves 12171 | -7/Lower Caves | Met a Warlord Commander 12172 | -7/Lower Caves | Learned location of Warlord (-5) 12173 | -7/Lower Caves | Warlord Commander delivered Encrypted Comm Array 12176 | -7/Lower Caves | Found Encrypted Comm Array 12383 | -7/Lower Caves | Learned Factory terminal intel 12428 | -7/Lower Caves | Build established: Scout 12679 | -7/Lower Caves | Lost 4 parts (2n2w) 12826 | -7/Lower Caves | Learned Factory garrison access intel 12933 | -7/Lower Caves | Build established: Mutant 13090 | -7/Lower Caves | Encountered a Warlord checkpoint 13090 | -7/Lower Caves | Learned Factory trap positions 13139 | -7/Lower Caves | Attracted the attention of an 0b10 checkpoint 13154 | -7/Lower Caves | Discovered new exit (range 15) 13169 | -7/Lower Caves | Identified exit to Lower Caves 13170 | -7/Lower Caves | Entered another Lower Caves area 13275 | -7/Lower Caves | Discovered new exit (range 3) 13279 | -7/Lower Caves | Identified exit to Factory 13305 | -7/Lower Caves | Spotted B-75 Beast 13517 | -7/Lower Caves | Build established: Scout 13552 | -7/Lower Caves | Encountered a Warlord checkpoint 13552 | -7/Lower Caves | Discovered new exit (range 6) 13555 | -7/Lower Caves | Identified exit to Zion 13638 | -7/Lower Caves | Entered Zion 13644 | -7/Zion | Given the Hacking Drone Bay 13657 | -7/Zion | Learned Factory security intel 13666 | -7/Zion | Found Prototype Device 13689 | -7/Zion | Found Prototype Launcher 13689 | -7/Zion | Identified Gui. Missile Launcher 13741 | -7/Zion | Learned location of Quarantine (-3) 13795 | -7/Zion | Identified exit to Deep Caves 13799 | -7/Zion | Found CR-A16's Pointy Stick 13850 | -7/Zion | Received a hallucinogenic algorithm 13929 | -7/Zion | Gained Derelict followers 14007 | -7/Zion | Gained Derelict followers 14091 | -7/Zion | Rebuked by Imprinter 14311 | -7/Zion | Discovered new exit (range 15) 14318 | -7/Zion | Identified exit to Proximity Caves 14360 | -7/Zion | Entered Proximity Caves 14360 | -6/Proximity Caves | Accompanied by 12 allies 14406 | -6/Proximity Caves | Found Alien Artifact 14540 | -6/Proximity Caves | Build established: Scavenger-Scout 14571 | -6/Proximity Caves | Learned Factory emergency access door positions 14693 | -6/Proximity Caves | Attracted the attention of an 0b10 checkpoint 14803 | -6/Proximity Caves | Discovered exit to Factory (range 5) 14919 | -6/Proximity Caves | Build established: Scavenger-Assassin 14965 | -6/Proximity Caves | Entered Factory 14965 | -6/Factory | Accompanied by 11 allies 14965 | -6/Factory | Evolved 2 slots: Utility x2 14966 | -6/Factory | Identified exit to Extension 14967 | -6/Factory | Loaded intel: 98 trap records 14970 | -6/Factory | Loaded intel: 28 terminal locations 14971 | -6/Factory | Loaded intel: 4 garrison access locations 15216 | -6/Factory | Identified Hacking Drone Bay 15383 | -6/Factory | Repaired Imp. Hover Unit 15487 | -6/Factory | Found Active Sensor Suite 15500 | -6/Factory | Lost 4 allies 15540 | -6/Factory | Joined by Warlord Pyro squad 15600 | -6/Factory | Lost 3 allies 15645 | -6/Factory | Joined by Warlord Muscle squad 15722 | -6/Factory | Cargo convoy interrupted 15747 | -6/Factory | Found Prototype Device 15747 | -6/Factory | Identified Exp. EM Disruption Field 15764 | -6/Factory | Lost 6 allies 15768 | -6/Factory | Destroyed 15 combat bots 15808 | -6/Factory | Build established: Hacker-Mutant 15842 | -6/Factory | Identified exit to Factory 15842 | -6/Factory | Identified exit to Lower Caves 15966 | -6/Factory | Found Prototype Processor 15966 | -6/Factory | Identified Exp. Targeting Computer 16136 | -6/Factory | Fabricated X-62 Marksman? 16236 | -6/Factory | Spotted B-75 Beast 16242 | -6/Factory | Revealed the true nature of CR-A16's Pointy Stick 16245 | -6/Factory | Destroyed B-75 Beast 16284 | -6/Factory | Identified Dimensional Node Initializer 16306 | -6/Factory | Joined by Warlord Infantry squad 16435 | -6/Factory | Repaired Hrd. Light Armor Plating 16481 | -6/Factory | Repaired Tiamat Missile Launcher 16609 | -6/Factory | Joined by Warlord Infantry squad 16648 | -6/Factory | Repaired Gravmag Array 16700 | -6/Factory | Joined by Warlord Ghost squad 16733 | -6/Factory | Joined by Warlord Chimera squad 17009 | -6/Factory | Joined by Warlord Dakka squad 17058 | -6/Factory | Repaired Med. Reflective Plating 17100 | -6/Factory | Lost 4 allies 17415 | -6/Factory | First assault squad dispatched 17631 | -6/Factory | Fabricated X-62 Marksman? 17669 | -6/Factory | Fabricated X-62 Marksman? 18019 | -6/Factory | High security lockdown imminent 18099 | -6/Factory | High security lockdown engaged 18178 | -6/Factory | Fabricated X-62 Marksman? 18206 | -6/Factory | Entered Extension 18206 | -6/Extension | Accompanied by 4 allies 18244 | -6/Extension | Energy Cycler disabled 18244 | -6/Extension | Rescued a captive Derelict 18244 | -6/Extension | Rescued a captive Derelict 18245 | -6/Extension | Rescued a captive Derelict 18245 | -6/Extension | Rescued a captive Derelict 18245 | -6/Extension | Rescued a captive Derelict 18246 | -6/Extension | Rescued a captive Derelict 18246 | -6/Extension | Rescued a captive Derelict 18250 | -6/Extension | Rescued a captive Derelict 18251 | -6/Extension | Rescued A7 18456 | -6/Extension | Lost 5 allies 18556 | -6/Extension | First assault squad dispatched 18646 | -6/Extension | High security lockdown imminent 18669 | -6/Extension | Spotted B-75 Beast 18676 | -6/Extension | Spotted B-75 Beast 18677 | -6/Extension | Discovered exit to Factory (range 13) 18678 | -6/Extension | Destroyed B-75 Beast 18685 | -6/Extension | Destroyed B-75 Beast 18686 | -6/Extension | Lost 3 allies 18723 | -6/Extension | Lost 4 parts (1p3u) 18726 | -6/Extension | High security lockdown engaged 18825 | -6/Extension | Destroyed 18 combat bots 18841 | -6/Extension | Core integrity fell below 50% 18858 | -6/Extension | Discovered new exit (range 16) 18858 | -6/Extension | Discovered exit to Factory (range 15) 18873 | -6/Extension | Lost 3 parts (2u1w) 18874 | -6/Extension | Destroyed 23 combat bots 18888 | -6/Extension | Entered Cetus 18888 | -6/Cetus | Accompanied by 2 allies (A7) 18893 | -6/Cetus | Acquired a Cetus Manufacturing Module code from A7 18896 | -6/Cetus | Spotted Cetus Guard 18896 | -6/Cetus | Spotted Cetus Guard 18901 | -6/Cetus | Destroyed Cetus Guard 18901 | -6/Cetus | Destroyed Cetus Guard 18912 | -6/Cetus | Spotted Cetus Guard 18918 | -6/Cetus | Allies destroyed Cetus Guard 18943 | -6/Cetus | Started Cetus Manufacturing Module 18955 | -6/Cetus | High security lockdown imminent 18962 | -6/Cetus | Discovered new exit (range 16) 18968 | -6/Cetus | Manufactured an Enhanced Grunt 18993 | -6/Cetus | Manufactured an Enhanced Grunt 19018 | -6/Cetus | Manufactured an Enhanced Grunt 19035 | -6/Cetus | High security lockdown engaged 19043 | -6/Cetus | Manufactured an Enhanced Grunt 19068 | -6/Cetus | Manufactured an Enhanced Grunt 19147 | -6/Cetus | Destroyed 12 combat bots 19159 | -6/Cetus | Lost 4 allies 19162 | -6/Cetus | Extracted ID and sensor layout for unrecognized location from A7's data core 19164 | -6/Cetus | Entered Archives 19164 | -6/Archives | Accompanied by 1 ally 19223 | -6/Archives | Lost 3 parts (3n) 19274 | -6/Archives | Discovered exit to Factory (range 15) 19275 | -6/Archives | Build established: Scavenger-Mutant 19302 | -6/Archives | Discovered new exit (range 16) 19370 | -6/Archives | Unable to access archive contents 19372 | -6/Archives | Discovered new exit (range 15) 19456 | -6/Archives | Entered Hub_04(d) 19456 | -6/Hub_04(d) | Accompanied by 1 ally 19470 | -6/Hub_04(d) | Discovered exit to Factory (range 7) 19490 | -6/Hub_04(d) | Central database locked down 19599 | -6/Hub_04(d) | Build established: Wizard-Mutant 19663 | -6/Hub_04(d) | Identified exit to Garrison 19778 | -6/Hub_04(d) | Network Hub disabled 19869 | -6/Hub_04(d) | Disrupted transfer network 19978 | -6/Hub_04(d) | Entered Garrison 19995 | -6/Garrison | Build established: Scavenger-Mutant 20012 | -6/Garrison | Triggered checkpoint 20038 | -6/Garrison | Garrison Relay disabled 20073 | -6/Garrison | Spotted B-75 Beast 20390 | -6/Garrison | Destroyed B-75 Beast 20469 | -6/Garrison | Triggered checkpoint 20507 | -6/Garrison | Triggered checkpoint 20538 | -6/Garrison | Lost 3 parts (1n1u1w) 20594 | -6/Garrison | Core integrity fell below 20% 20604 | -6/Garrison | Triggered checkpoint 20643 | -6/Garrison | Discovered exit to Factory (range 12) 20657 | -6/Garrison | Garrison Relay disabled 20724 | -6/Garrison | Discovered exit to Factory (range 22) 20766 | -6/Garrison | Phase Generator disabled 20840 | -6/Garrison | Garrison Relay disabled 20854 | -6/Garrison | Destroyed 8 combat bots 20869 | -6/Garrison | Garrison Relay disabled 20902 | -6/Garrison | Spotted B-75 Beast 20920 | -6/Garrison | Destroyed B-75 Beast 21005 | -6/Garrison | Discovered exit to Factory (range 32) 21005 | -6/Garrison | Discovered exit to Factory (range 51) 21005 | -6/Garrison | Discovered exit to Factory (range 61) 21006 | -6/Garrison | Garrison Relay disabled 21024 | -6/Garrison | Garrison Relay disabled 21214 | -6/Garrison | Lost 3 allies 21608 | -6/Garrison | Triggered checkpoint 21955 | -6/Garrison | Triggered checkpoint 22392 | -6/Garrison | Entered Factory 22392 | -5/Factory | Evolved 2 slots: Utility x2 22440 | -5/Factory | Joined by Warlord Infantry squad 22569 | -5/Factory | Discovered new exit (range 20) 22692 | -5/Factory | First assault squad dispatched 22779 | -5/Factory | Lost 3 allies 22787 | -5/Factory | Joined by Warlord Pyro squad 22798 | -5/Factory | Discovered new exit (range 22) 22889 | -5/Factory | Central database locked down 22963 | -5/Factory | Identified exit to Upper Caves 22987 | -5/Factory | Identified exit to Factory 23014 | -5/Factory | Spotted B-75 Beast 23024 | -5/Factory | Destroyed B-75 Beast 23065 | -5/Factory | Joined by Warlord Ghost squad 23123 | -5/Factory | Repaired Gravmag System 23146 | -5/Factory | Repaired Gravmag System 23191 | -5/Factory | Lost 4 allies 23230 | -5/Factory | Build established: Hacker-Mutant 23305 | -5/Factory | Repaired Broken Stasis Canceller 23379 | -5/Factory | Joined by Warlord Muscle squad 23427 | -5/Factory | High security lockdown imminent 23442 | -5/Factory | Lost 5 allies 23460 | -5/Factory | Destroyed 12 combat bots 23491 | -5/Factory | Fabricated H-66 Slayer? 23507 | -5/Factory | High security lockdown engaged 23700 | -5/Factory | Lost 3 parts (2n1w) 23705 | -5/Factory | Destroyed 22 combat bots 23764 | -5/Factory | Lost 4 parts (1p1n2u) 23767 | -5/Factory | Destroyed 11 combat bots 23800 | -5/Factory | Entered Upper Caves 23801 | -5/Upper Caves | Identified exit to Upper Caves 23972 | -5/Upper Caves | Ambushed by wild Derelicts 23999 | -5/Upper Caves | Learned Factory stockpile data 24362 | -5/Upper Caves | Entered another Upper Caves area 24411 | -5/Upper Caves | Lost 3 parts (2n1u) 24441 | -5/Upper Caves | Learned location of 2 exits from Factory 24445 | -5/Upper Caves | Discovered exit to Factory (range 10) 24452 | -5/Upper Caves | Learned Factory terminal intel 24517 | -5/Upper Caves | Attracted the attention of an 0b10 checkpoint 24553 | -5/Upper Caves | Lost 3 parts (1n1u1w) 25463 | -5/Upper Caves | Attracted the attention of an 0b10 base 25488 | -5/Upper Caves | Destroyed 14 combat bots 25502 | -5/Upper Caves | Core integrity fell below 50% 25827 | -5/Upper Caves | Build established: Mutant 26073 | -5/Upper Caves | Learned Armory emergency access door positions 26073 | -5/Upper Caves | Learned Armory stockpile data 26239 | -5/Upper Caves | Discovered new exit (range 21) 26386 | -5/Upper Caves | Build established: Hacker-Mutant 26502 | -5/Upper Caves | Entered Warlord 26555 | -5/Warlord | System corruption cleaned by Quarantine Array 26872 | -5/Warlord | Learned Factory terminal intel 26872 | -5/Warlord | Learned Armory recycling unit intel 26872 | -5/Warlord | Learned Armory garrison access intel 26872 | -5/Warlord | Learned Research repair station intel 26873 | -5/Warlord | Learned Armory trap positions 27129 | -5/Warlord | Received a Watcher feed algorithm from an ecstatic Tinkerer 27150 | -5/Warlord | Warlord's base attacked by MAIN.C 27295 | -5/Warlord | Found Prototype Special Weapon 27297 | -5/Warlord | Found Prototype Special Weapon 27300 | -5/Warlord | Found Prototype Special Weapon 27302 | -5/Warlord | Found Prototype Special Weapon 27305 | -5/Warlord | Found Prototype Special Weapon 27336 | -5/Warlord | Met Warlord 27500 | -5/Warlord | Warlord forces counterattacked 27535 | -5/Warlord | Spotted Striker 27535 | -5/Warlord | Spotted Striker 27574 | -5/Warlord | Spotted Striker 27575 | -5/Warlord | P-70 Sage assimilated allied E4-OHR(g) 27582 | -5/Warlord | Spotted Striker 27583 | -5/Warlord | P-70 Sage assimilated allied XV-R7S(g) 27644 | -5/Warlord | Lost 17 allies 27673 | -5/Warlord | Spotted B-86 Titan 27674 | -5/Warlord | Spotted B-75 Beast 27674 | -5/Warlord | Spotted Executioner 27681 | -5/Warlord | Destroyed B-86 Titan 27707 | -5/Warlord | Identified RU-N14's Throwing Claymores v3 (x5) 27731 | -5/Warlord | Lost 8 allies 27764 | -5/Warlord | Spotted Striker 27820 | -5/Warlord | Spotted B-86 Titan 27825 | -5/Warlord | Warlord base infiltrated, sounded retreat 27856 | -5/Warlord | Found Prototype Energy Cannon 27858 | -5/Warlord | Found Prototype Energy Cannon 27917 | -5/Warlord | Found RU-N14's Throwing Claymores v3 27944 | -5/Warlord | Spotted Striker 27944 | -5/Warlord | Spotted Striker 27976 | -5/Warlord | Lost 4 allies 28183 | -5/Warlord | Spotted Striker 28220 | -5/Warlord | Spotted Striker 28228 | -5/Warlord | Spotted Striker 28250 | -5/Warlord | Core integrity fell below 20% 28251 | -5/Warlord | Discovered new exit (range 14) 28258 | -5/Warlord | Entered Proximity Caves 28512 | -4/Proximity Caves | Discovered exit to Factory (range 14) 28534 | -4/Proximity Caves | Entered Factory 28534 | -4/Factory | Evolved 2 slots: Propulsion x1, Utility x1 28535 | -4/Factory | Identified exit to Research 28535 | -4/Factory | Identified exit to Upper Caves 28537 | -4/Factory | Loaded intel: 26 terminal locations 28615 | -4/Factory | Identified Vortex Driver (x2) 28663 | -4/Factory | Spotted B-86 Titan 28939 | -4/Factory | Destroyed B-86 Titan 28988 | -4/Factory | Identified exit to Armory 29142 | -4/Factory | Central database locked down 29223 | -4/Factory | Identified exit to Garrison 29275 | -4/Factory | Repaired Impulse Thruster 29333 | -4/Factory | Search patrols dispatched 29348 | -4/Factory | Fabricated Micro-nuke Launcher? 29551 | -4/Factory | Spotted B-86 Titan 29554 | -4/Factory | Destroyed B-86 Titan 29579 | -4/Factory | Search patrols dispatched 29586 | -4/Factory | Build established: Hacker-Sprinter 29600 | -4/Factory | Identified exit to Garrison 29635 | -4/Factory | Discovered exit to Research (range 22) 29650 | -4/Factory | Fabricated Tiamat Missile Launcher? 29652 | -4/Factory | Sucked down chute 29652 | -4/Factory | Entered Waste 29659 | -4/Waste | Spotted C-40 Crusher 29660 | -4/Waste | Spotted C-40 Crusher 29664 | -4/Waste | Spotted C-40 Crusher 29665 | -4/Waste | Spotted C-40 Crusher 29665 | -4/Waste | Spotted C-40 Crusher 29674 | -4/Waste | Spotted C-40 Crusher 29675 | -4/Waste | Discovered new exit (range 11) 29685 | -4/Waste | Entered Factory 29686 | -4/Factory | Loaded intel: 26 terminal locations 29780 | -4/Factory | Spotted B-86 Titan 29807 | -4/Factory | Destroyed B-86 Titan 29811 | -4/Factory | Identified exit to Garrison 29953 | -4/Factory | Spotted B-86 Titan 29960 | -4/Factory | Destroyed B-86 Titan 30012 | -4/Factory | Fabricated Railgun? 30240 | -4/Factory | Discovered exit to Armory (range 22) 30525 | -4/Factory | Repaired Q-thruster? 30655 | -4/Factory | Discovered exit to Research (range 10) 30685 | -4/Factory | Search patrols dispatched 30801 | -4/Factory | Repaired Broken Q-thruster? 30825 | -4/Factory | Central database locked down 30946 | -4/Factory | Discovered exit to Research (range 5) 31098 | -4/Factory | Fabricated P-70 Sage? 31118 | -4/Factory | Repaired Broken Q-thruster 31304 | -4/Factory | Discovered exit to Upper Caves (range 9) 31373 | -4/Factory | Discovered exit to Research (range 11) 31408 | -4/Factory | Discovered exit to Upper Caves (range 10) 31542 | -4/Factory | Fabricated P-70 Sage? 31636 | -4/Factory | Fabricated P-70 Sage (x2) 31654 | -4/Factory | Entered Armory 31655 | -4/Armory | Loaded intel: 42 trap records 31658 | -4/Armory | Loaded intel: 2 recycling unit locations 31690 | -4/Armory | Found Unknown Launcher 31690 | -4/Armory | Identified Fusion Bomb Launcher 31693 | -4/Armory | Found Fusion Bomb Launcher 31694 | -4/Armory | Found Fusion Bomb Launcher 31709 | -4/Armory | Spotted B-86 Titan 31710 | -4/Armory | Destroyed B-86 Titan 31783 | -4/Armory | Fabricated P-70 Sage? 31812 | -4/Armory | Fabricated P-70 Sage? 31848 | -4/Armory | Found Fusion Bomb Launcher 31901 | -4/Armory | Fabricated G-67 Veteran? 31925 | -4/Armory | Fabricated D-53 Grenadier? 31960 | -4/Armory | Lost 4 allies 32000 | -4/Armory | Initialized slip node 32001 | -4/Armory | Core integrity fell below 50% 32009 | -4/Armory | Core integrity fell below 20% 32021 | -4/Armory | Found Prototype Device 32021 | -4/Armory | Identified Adv. EM Disruption Field 32031 | -4/Armory | Lost 7 parts (1p5n1w) 32038 | -4/Armory | Fabricated P-70 Sage? 32070 | -4/Armory | Entered Research 32070 | -3/Research | Accompanied by 2 allies 32070 | -3/Research | Evolved 2 slots: Utility x2 32071 | -3/Research | Loaded intel: 4 repair station locations 32081 | -3/Research | Identified exit to Quarantine 32081 | -3/Research | Identified exit to Research 32235 | -3/Research | Build established: Wizard-Mutant 32357 | -3/Research | Identified exit to Garrison 32367 | -3/Research | Search patrols dispatched 32581 | -3/Research | Repaired Imp. Antigrav System 32814 | -3/Research | Local machine network offline 32825 | -3/Research | Spotted B-86 Titan 32836 | -3/Research | Destroyed B-86 Titan 32845 | -3/Research | First assault squad dispatched 32949 | -3/Research | Entered Quarantine 32950 | -3/Quarantine | Maximum security lockdown engaged 32993 | -3/Quarantine | Found Alien Reactor 32994 | -3/Quarantine | Spotted Alpha 7 33000 | -3/Quarantine | Discovered exit to Research (range 21) 33003 | -3/Quarantine | Local machine network offline 33011 | -3/Quarantine | Released all parts (18) 33017 | -3/Quarantine | Scanned by Researcher 33028 | -3/Quarantine | Core integrity fell below 50% 33055 | -3/Quarantine | Core integrity fell below 20% 33065 | -3/Quarantine | Lost 5 allies 33075 | -3/Quarantine | Destroyed by G-67 Veteran with Field Laser Last Messages --------------- 33051_ G-67 Veteran unfolds itself. 33051_ L-61 Swordsman unfolds itself. 33051_ M-36 Artificer unfolds itself. 33052_ Critical hit (Burn: +37). 33052_ L-61 Swordsman suffers critical hit (Burn). 33052_ Cesium-ion Thruster destroyed. 33068_ Slammed into E-15 Imp. 33068_ C-55 Analyst calls for reinforcements. 33068_ ALERT: Hostile activity reported, dispatching reinforcements to area. 33068_ Held in stasis. 33068_ C-55 Analyst is analyzing... 33069_ L-61 Swordsman held in stasis. 33071_ E-15 Imp destroyed. 33072_ G-67 Veteran suffers critical hit (Burn). 33073_ Acquired Cesium-ion Thruster. 33073_ Held in stasis. 33073_ C-55 Analyst is analyzing... 33073_ Held in stasis. 33073_ C-55 Analyst is analyzing... 33074_ C-55 Analyst suffers critical hit (Burn). Map ----- +----------------------------------------------------+ | # """ """ #? ? ???????????????##############? | | # """ """ # ! ?????????????????????????????? | | # """ """ # ??????????????????????????????? | | # """ """ # ??????????????????????????????? | | # """ """ # """ ???????????????????????????????? | | # " # """ ???????????????????????????????? | | # "%" # """????????????????????????????????? | | # "%%" # ????????????????????????????????? | | # "" "%" ###/###########??????????????????????? | | # "G " +??????????????????????? | | + "" g g #??????????????????????? | | # = gg +??????????????????????? | | # gbg #??????????????????????? | | ####+####+############ #??????????????????????? | | ?????????????????????# #??????????????????????? | | ?????????????????????#gg #??????????????????????? | | ?????????????????????# bb #??????????????????????? | | ?????????????????????# g #??????????????????????? | | ?????????????????????#l ###########????????????? | | ?????????????????????#g g # #????????????? | | ?????????????????????#gle # "" #????????????? | | ?????????????????????# ccg# """ #????????????? | | ?????????????????????# g # "/" #????????????? | | ?????????????????????# =%l """ #????????????? | | ?????????????????????+ # "" #????????????? | | ?????????????????????# @# #????????????? | | ?????????????????????# # #????????????? | | ?????????????????????# ###########????????????? | | ?????????????????????# #??????????????????????? | | ?????????????????????# ?h????????????????????? | | ????????????????????? ?h????????????????????? | | ???????????????????? ?h????????????????????? | | ??????????????????? #??????????????????????? | | ?????????????????? #??????????????????????? | | ????????????????? ####T###???????????????????????? | | ???????????????? ???##??????????????????????????? | | ???????????????" ????????????????????????????????? | | ?????????????????????????????????????????????????? | | ?????????????????????????????????????????????????? | | ?????????????????????????????????????????????????? | | ?????????????????????????????????????????????????? | | ?????????????????????????????????????????????????? | | ?????????????????????????????????????????????????? | | ?????????????????????????????????????????????????? | | ?????????????????????????????????????????????????? | | ?????????????????????????????????????????????????? | | ?????????????????????????????????????????????????? | | ?????????????????????????????????????????????????? | | ?????????????????????????????????????????????????? | | ?????????????????????????????????????????????????? | +----------------------------------------------------+ Best States ------------- Heat Dissipation 77 Energy Generation 25 Energy Capacity 340 Matter Stores 300 Matter Capacity 550 Sight Range 23 Robot Scan Range 20 Terrain Scan Range 16 Terrain Scan Density 10 ECM Strength 2 Jamming Range 16 Power Amplification 30 Additional Mass Support 12 Armor Coverage 600 Resistance: TH 25 Resistance: EX 50 Resistance: EM 50 Core Shielding 20 Propulsion Shielding 66 Weapon Shielding 90 Weapon Cycling 25 Evasion (%) 67 Targeting Accuracy 14 Melee Accuracy 5 Launcher Accuracy 20 Target Analysis 9 Armor Integrity Analysis 30 Recoil Reduction 1 Matter Filtering 50 Kinecelleration 40 Offensive Hacking 48 Defensive Hacking 36 Item Schematics ----------------- Assault Rifle | -9/Materials | Scanalyzed Mak. Shrapnel Gun | -9/Materials | Scanalyzed Imp. Flight Unit | -9/Materials | Scanalyzed Airjet | -8/Materials | Scanalyzed Exp. Sensor Array | -8/Materials | Scanalyzed Lyr. Light Armor Plating | -8/Materials | Scanalyzed Imp. Hover Unit | -8/Materials | Scanalyzed Hcp. Matter Pod | -8/Materials | Scanalyzed Enh. Autogun | -8/Materials | Scanalyzed Adv. Drone Bay | -7/Factory | Hacked Transmission Jammer | -7/Zion | Archive Nuclear Pulse Thruster | -7/Zion | Archive Corruption Screen | -7/Zion | Archive Force Field | -7/Zion | Archive Med. Treads | -7/Zion | Archive Proton Cannon | -7/Zion | Archive Lance | -7/Zion | Archive Adv. Trap Extractor | -7/Zion | Archive Spear | -7/Zion | Archive Drone Bay | -7/Zion | Archive Hpw. Shock Rifle | -7/Zion | Archive Beamcaster | -7/Zion | Archive Mak. Spear | -7/Zion | Archive HERF Cannon | -7/Zion | Archive Gravmag Array | -6/Factory | Scanalyzed Tiamat Missile Launcher | -6/Factory | Scanalyzed Adv. Hacking Suite | -6/Hub_04(d) | Hacked Enh. Gauss Cannon | -6/Hub_04(d) | Hacked Smartbomb Launcher | -6/Hub_04(d) | Hacked Imp. Launcher Guidance Computer | -6/Hub_04(d) | Hacked Imp. Kinecellerator | -5/Factory | Hacked Lyr. Medium Armor Plating | -5/Factory | Scanalyzed Imp. KE Penetrator | -5/Factory | Scanalyzed Stasis Canceller | -5/Factory | Scanalyzed Micro-nuke Launcher | -5/Factory | Scanalyzed Mic. Antimatter Reactor | -5/Factory | Scanalyzed Imp. Matter Compressor | -5/Factory | Scanalyzed Field Propulsion Array | -4/Factory | Scanalyzed Railgun | -4/Factory | Scanalyzed Lgt. Antimatter Reactor | -4/Factory | Scanalyzed Impulse Thruster | -4/Factory | Hacked Cmb. Linear Gravjet | -4/Factory | Hacked Centrium Light Armor Plating | -4/Factory | Scanalyzed Q-thruster | -4/Factory | Scanalyzed Imp. Energy Well | -4/Factory | Scanalyzed Adv. Weapon Cycler | -4/Factory | Scanalyzed Adv. Power Amplifier | -4/Factory | Scanalyzed Antigrav Array | -4/Factory | Hacked Nuclear Pulse Array | -4/Factory | Scanalyzed Robot Schematics ------------------ R-06 Scavenger | -7/Zion | Archive X-62 Marksman | -7/Zion | Archive A-02 Transporter | -7/Zion | Archive Y-54 Guardian | -6/Hub_04(d) | Hacked H-66 Slayer | -5/Factory | Hacked I-47 Archangel | -4/Factory | Hacked M-30 Cleanser | -4/Factory | Hacked P-70 Sage | -4/Factory | Hacked I-36 Angel | -4/Factory | Hacked D-53 Grenadier | -4/Armory | Hacked Fabricated ------------ Airjet | x2 | -7/Factory Airjet | x2 | -7/Factory Airjet | x2 | -7/Factory Lyr. Light Armor Plating | x2 | -7/Factory Airjet | x2 | -7/Factory X-62 Marksman | x2 | -6/Factory X-62 Marksman | x2 | -6/Factory X-62 Marksman | x2 | -6/Factory X-62 Marksman | x2 | -6/Factory H-66 Slayer | x2 | -5/Factory Micro-nuke Launcher | x1 | -4/Factory Tiamat Missile Launcher | x1 | -4/Factory Railgun | x2 | -4/Factory | Preloaded P-70 Sage | x2 | -4/Factory P-70 Sage | x2 | -4/Factory P-70 Sage | x2 | -4/Factory P-70 Sage | x2 | -4/Armory P-70 Sage | x2 | -4/Armory G-67 Veteran | x3 | -4/Armory | Preloaded D-53 Grenadier | x1 | -4/Armory P-70 Sage | x2 | -4/Armory Alien Tech Used ----------------- Dimensional Node Initializer Achievements -------------- None Challenges ------------ None Game ------ Seed HeatReflectiveRifle Manual? 0 Play Time 10:19:19 Cumulative 362.1 hours Start 2024.05.17 @ 08:13:07 End 2024.05.18 @ 00:44:25 Sessions 5 Manual Loads 0 Difficulty Rogue Special Mode None Game No. 132 Rogue 132 Adventurer 0 Explorer 0 Win Type - Total 2 Types 0/0/2/0/0/0/0/0/0 Lore% 69 Gallery% 77 Achievement% 60 Wizard Run 0 Options --------- Layout 0 ASCII 0 Keyboard 1 Movement Arrows Keybinds 0 Fullscreen 1 Font 12/Proggy Map View 83x54 Zoom Use 0% Tactical HUD 1 Map Filters NONE Filters NONE Steam 0 RUN: 31841cd5-adbb-4f7e-84fc-146bac306ad8